Workbook

Sheet Cover

Sheet Instructions
B2: Purpose:
B3: This template provides a standardized guidance resource for completing data quality assessments to support the Label Program for Low Embodied Carbon Construction Materials.
B4: Reference Document:
B5: 1. | C5: DQA Text: Data Quality Assessment Method to Support the Label Program for Low Embodied Carbon Construction Materials (Version 1)
B6: Contents:
B7: 1. | C7: Scoring Template
B8: 2. | C8: DQA Scoring Matrix
B9: 3. | C9: Scoring Example (USLCI)
B10: 4. | C10: DQA Matrix Example
B11: Instructions:
B12: 1. | C12: Complete the “USE CASE DATA QUALITY ASSESSMENT INPUTS” data table, in section 1 of the Scoring Template tab.
C13: a) | D13: The purpose of the Use Case values is to ensure clear documentation of the physical system that models in question are intended to represent.
C14: b) | D14: The following bullets outline which information should be added for each DQI Component:
D15: i. | E15: Year of Data Use: This should be the year that the model being evaluated is used.
D16: ii. | E16: Geographical Resolution: This should be the geographical scope that the model being evaluated is intended to represent.
D17: iii. | E17: Process Design: This should be a basic stepwise description of the unit processes required to produce the material in question.
D18: iv. | E18: Operating Conditions: This should include parameters such as the temperatures or pressures used in the unit processes to produce the material in question.
D19: v. | E19: Material Quality/Type: This description should include material grade (i.e. food, pharma) or concentrations (i.e. 85% ethanol).
D20: vi | E20: Process Scale: This should include information about the throughput of a process; this will be a value with units such as volume or mass per time.
C21: c) | D21: These values will be referenced during the Flow Data Quality Evaluation.
B23: 2. | C23: Complete the “UPSTREAM PROCESS INCLUSION EVALUATION” data table, in section 2 of the Scoring Template tab.
C24: a) | D24: This table indicates which upstream processes require evaluation, based on their contribution to the total cradle-to-gate impacts of the model being evaluated.
C25: b) | D25: The first row of the table should be filled out with information associated with the process.
C26: c) | D26: All other rows should be filled out with information associated with the inputs and outputs of the process being evaluated.
C27: d) | D27: See Table 8 and the Discussion section from the DQA Text for a complete example.
B29: 3. | C29: Complete all tables in section 3 of the Scoring Template tab.
C30: a) | D30: Enter the process Name and a link or location the process can be source from.
C31: b) | D31: Complete the "PROCESS DATA QUALITY EVALUATION” table based on Table 3 of the DQA Text.
C32: c) | D32: Complete the “DATA ATTRIBUTES” based on Table 4 of the DQA Text.
C33: d) | D33: Complete the “LCIA METHOD COMPATIBILITY” based on Table 5 of the DQA Text.
B35: 4. | C35: Complete all tables in section 4 of the Scoring Template
C36: a) | D36: The flow data quality evaluation is necessary in assessing the representativeness of the flow with respect to the process it is attempting to model.
C37: b) | D37: Complete the "FLOW DATA QUALITY EVALUATION” table based on metadata and documentation of the process for each of its flows.
C38: c) | D38: Once complete, Flow-Level DQIs can then be scored. The following are the flow-level DQIs to score:
D39: i. | E39: Temporal Representativeness: is filled automatically based on the year that was inputted into the flow’s “Year” column.
D40: ii. | E40: Geographical Representativeness: is manually scored based on the criteria found in the notes on each header of the table.
D41: iii. | E41: Technological Representativeness: is manually scored based on the criteria found in the notes on each header of the table.
D42: iv. | E42: Data Collection Methods: is manually scored based on the criteria found in the notes on each header of the table.
D43: v. | E43: Reliability: is manually scored based on the criteria found in the notes on each header of the table.
C44: d) | D44: When scoring flow-level DQIs, it is necessary to only evaluate the direct metadata and documentation of the model as this is being represented by the flow’s exchange value. If the metadata and documentation does not clearly detail the sources of the exchange values and results of a specific flow, that flow should be scored as 5, and it should be noted that the documentation lacks detail on that specific flow.
B46: 5. | C46: Considerations for when additional upstream processes need to be added:
C47: a) | D47: Column G, “Year”, cell E7 (year of data use), and column M, “Temporal”, are linked with an equation that automatically calculates the score in column M. When copying and pasting tables for additional processes, be aware of the changes in the equation ranges, the “Year” and “Temporal” in their respective columns G and M should be kept consistent.
C48: b) | D48: Score aggregations are calculated automatically for the process, but the equations will require adjustments for subsequent process scores. Check if the aggregate scores are linked between spreadsheets properly. When several process scores are evaluated, the overall data quality score will need to be calculated using a weighted sum. See below for more details.
B50: 6. | C50: Score aggregation: When several processes are evaluated for one dataset, the data quality score will be determined via a weighted summation of individual process scores. See the example in the template.
C51: a) | D51: Calculate the total impact percentage represented by the process by subtracting the percentage impact of other contributing flows.
C52: b) | D52: Create a score aggregation matrix for processes contributing more than 10% of the total GHG impact by copying and pasting the scoring matrix into the “DQA Scoring Matrix.” Make sure to link the cells with the template sheet.
C53: c) | D53: Scale the contribution percentages to 100% to determine the relative weight of each scored process (see the example).
C54: d) | D54: Format the weights as decimals and complete the weighted scoring by multiplying each process score by its respective weight before summing.

Sheet Scoring Template
A1: Process and Flow Scoring According to Data Quality Assessment Method
C3: Cell Type Key
C4: User should input value or text
C5: User should input value; linked to aggregation matrix
C6: Calculated Cells (DO NOT EDIT)
C7: Calculated cells linked to aggregation matrix (DO NOT EDIT)
B9: 1) Enter the use case values describing the physical system that the process or product system for evaluation are intended to represent.
C11: USE CASE DATA QUALITY ASSESSMENT INPUTS
C12: Data Quality Indicator (DQI) | D12: Use Case Value
C13: Year of Data Use
C14: Geographical Resolution
C15: Technology: Process Design
C16: Technology: Operating Conditions
C17: Technology: Material Quality/Type
C18: Technology: Process Scale
B20: 2) Enter results from the cradle-to-gate evaluation for the product system that is being evaluated
C21: LCIA method to assess GHG contribution available at: https://catalog.data.gov/dataset/characterization-factors-for-construction-material-epd-indicators-iso21930-lcia-us-v0-1
C23: UPSTREAM PROCESS INCLUSION EVALUATION
C24: Contribution [%] | D24: Process | E24: Exchange Value | F24: Flow Unit | G24: Cradle-to-Gate Impact (kg CO2 eq) | H24: Include? (Y/N)
C25: 100.00 | D25: Product System | E25: Reference flow value | F25: enter unit | G25: enter value | H25: =IF(ISNUMBER(C25),IF(C25>=10,"YES","NO"),"-") -> YES
C26: enter percentage value without '%' | D26: flow name | E26: input/output flow value | F26: enter unit | G26: enter value | H26: =IF(ISNUMBER(C26),IF(C26>=10,"YES","NO"),"-") -> -
C27: enter percentage value without '%' | D27: flow name | E27: input/output flow value | F27: enter unit | G27: enter value | H27: -
C28: enter percentage value without '%' | D28: flow name | E28: input/output flow value | F28: enter unit | G28: enter value | H28: -
C29: enter percentage value without '%' | D29: flow name | E29: input/output flow value | F29: enter unit | G29: enter value | H29: -
C30: enter percentage value without '%' | D30: flow name | E30: input/output flow value | F30: enter unit | G30: enter value | H30: -
C31: enter percentage value without '%' | D31: flow name | E31: input/output flow value | F31: enter unit | G31: enter value | H31: -
C32: enter percentage value without '%' | D32: flow name | E32: input/output flow value | F32: enter unit | G32: enter value | H32: -
C33: enter percentage value without '%' | D33: flow name | E33: input/output flow value | F33: enter unit | G33: enter value | H33: -
C34: enter percentage value without '%' | D34: flow name | E34: input/output flow value | F34: enter unit | G34: enter value | H34: -
C35: enter percentage value without '%' | D35: flow name | E35: input/output flow value | F35: enter unit | G35: enter value | H35: -
C36: enter percentage value without '%' | D36: flow name | E36: input/output flow value | F36: enter unit | G36: enter value | H36: -
C37: enter percentage value without '%' | D37: flow name | E37: input/output flow value | F37: enter unit | G37: enter value | H37: -
C38: enter percentage value without '%' | D38: flow name | E38: input/output flow value | F38: enter unit | G38: enter value | H38: -
C39: enter percentage value without '%' | D39: flow name | E39: input/output flow value | F39: enter unit | G39: enter value | H39: -
B41: 3) Enter results of the process level data quality evaluation (including data attributes and LCIA method compatibility)
C43: Process Name | D43: enter name
C44: Process Link | D44: enter link
C46: PROCESS DATA QUALITY EVALUATION | F46: DATA ATTRIBUTES
C47: Reviewed | D47: Flow Completeness | E47: Range Data Completeness | F47: Reproducibility | G47: Free-to-Use & Publicly Accessible | H47: Maintained | I47: Interoperable
C48: PROCESS DATA QUALITY INFORMATION ~ Enter data from the process that will be used to generate a 1-5 score ~
C49: enter response | D49: enter response | E49: enter response | F49: enter response | G49: enter response | H49: enter response | I49: enter response
C50: PROCESS DATA QUALITY SCORES ~ Enter a 1-5 score based on the process data quality evaluation responses~
C51: enter score | D51: enter score | E51: enter score | F51: enter score | G51: enter score | H51: enter score | I51: enter score
C53: Use this link to characterization factors to determine LCIA compatibility: https://catalog.data.gov/dataset/characterization-factors-for-construction-material-epd-indicators-iso21930-lcia-us-v0-1
C54: LCIA METHOD COMPATIBILITY
C55: Impact Category | D55: Identified compatibility with impact assessment category (score as 1) | E55: Known flows missing (score as 3) | F55: Not Compatible (or unknown) (score as 5)
C56: Greenhouse Gases
C57: Ozone Depletion Potential
C58: Eutrophication Potential
C59: Acidification Potential
C60: Photochemical Oxidant Creation Potential
C62: LCIA Compatibility Average
C63: =AVERAGE(D56:F60) -> 
B65: 4) Enter results of the flow level data quality evaluation
C67: FLOW DATA QUALITY EVALUATION
C68: Flow | D68: Flow Type | E68: Direction | F68: Exchange Impacts (flow amount* characterization factor) | G68: Year | H68: Geography
C69: flow name | D69: enter 'technosphere' or 'elementary' accordingly | E69: enter 'input' or 'output' accordingly | F69: input/output flow value | G69: enter response | H69: enter response
C70: flow name | D70: enter 'technosphere' or 'elementary' accordingly | E70: enter 'input' or 'output' accordingly | F70: input/output flow value | G70: enter response | H70: enter response
C71: flow name | D71: enter 'technosphere' or 'elementary' accordingly | E71: enter 'input' or 'output' accordingly | F71: input/output flow value | G71: enter response | H71: enter response
C72: flow name | D72: enter 'technosphere' or 'elementary' accordingly | E72: enter 'input' or 'output' accordingly | F72: input/output flow value | G72: enter response | H72: enter response
C73: flow name | D73: enter 'technosphere' or 'elementary' accordingly | E73: enter 'input' or 'output' accordingly | F73: input/output flow value | G73: enter response | H73: enter response
C74: flow name | D74: enter 'technosphere' or 'elementary' accordingly | E74: enter 'input' or 'output' accordingly | F74: input/output flow value | G74: enter response | H74: enter response
C75: flow name | D75: enter 'technosphere' or 'elementary' accordingly | E75: enter 'input' or 'output' accordingly | F75: input/output flow value | G75: enter response | H75: enter response
C76: flow name | D76: enter 'technosphere' or 'elementary' accordingly | E76: enter 'input' or 'output' accordingly | F76: input/output flow value | G76: enter response | H76: enter response
C77: flow name | D77: enter 'technosphere' or 'elementary' accordingly | E77: enter 'input' or 'output' accordingly | F77: input/output flow value | G77: enter response | H77: enter response
C78: flow name | D78: enter 'technosphere' or 'elementary' accordingly | E78: enter 'input' or 'output' accordingly | F78: input/output flow value | G78: enter response | H78: enter response
C79: flow name | D79: enter 'technosphere' or 'elementary' accordingly | E79: enter 'input' or 'output' accordingly | F79: input/output flow value | G79: enter response | H79: enter response
C80: flow name | D80: enter 'technosphere' or 'elementary' accordingly | E80: enter 'input' or 'output' accordingly | F80: input/output flow value | G80: enter response | H80: enter response
C81: flow name | D81: enter 'technosphere' or 'elementary' accordingly | E81: enter 'input' or 'output' accordingly | F81: input/output flow value | G81: enter response | H81: enter response
C82: flow name | D82: enter 'technosphere' or 'elementary' accordingly | E82: enter 'input' or 'output' accordingly | F82: input/output flow value | G82: enter response | H82: enter response
C83: flow name | D83: enter 'technosphere' or 'elementary' accordingly | E83: enter 'input' or 'output' accordingly | F83: input/output flow value | G83: enter response | H83: enter response
C85: Aggregated Score | D85: Aggregated Score | E85: Aggregated Score | F85: Aggregated Score | G85: Aggregated Score
C86: =SUMPRODUCT($F69:$F83,C89:C103)/SUM($F69:$F83) ->  | D86: =SUMPRODUCT($F69:$F83,D89:D103)/SUM($F69:$F83) ->  | E86: =SUMPRODUCT($F69:$F83,E89:E103)/SUM($F69:$F83) ->  | F86: =SUMPRODUCT($F69:$F83,F89:F103)/SUM($F69:$F83) ->  | G86: =SUMPRODUCT($F69:$F83,G89:G103)/SUM($F69:$F83) -> 
C87: FLOW DATA QUALITY SCORES
C88: Temporal | D88: Geographical | E88: Technological | F88: Data Collection | G88: Reliability
C89: =IF(ABS($D$13-G69)<3,1,IF(ABS($D$13-G69)<6,2,IF(ABS($D$13-G69)<10,3,IF(ABS($D$13-G69)<15,4,5)))) ->  | D89: enter score | E89: enter score | F89: enter score | G89: enter score
C90: =IF(ABS($D$13-G70)<3,1,IF(ABS($D$13-G70)<6,2,IF(ABS($D$13-G70)<10,3,IF(ABS($D$13-G70)<15,4,5)))) ->  | D90: enter score | E90: enter score | F90: enter score | G90: enter score
D91: enter score | E91: enter score | F91: enter score | G91: enter score
D92: enter score | E92: enter score | F92: enter score | G92: enter score
D93: enter score | E93: enter score | F93: enter score | G93: enter score
D94: enter score | E94: enter score | F94: enter score | G94: enter score
D95: enter score | E95: enter score | F95: enter score | G95: enter score
D96: enter score | E96: enter score | F96: enter score | G96: enter score
D97: enter score | E97: enter score | F97: enter score | G97: enter score
D98: enter score | E98: enter score | F98: enter score | G98: enter score
D99: enter score | E99: enter score | F99: enter score | G99: enter score
D100: enter score | E100: enter score | F100: enter score | G100: enter score
D101: enter score | E101: enter score | F101: enter score | G101: enter score
D102: enter score | E102: enter score | F102: enter score | G102: enter score
D103: enter score | E103: enter score | F103: enter score | G103: enter score
C107: 5) Upstream process and flow level evaluations
C109: COPY AND PASTE STEPS 3-4 HERE FOR ANY UPSTREAM PROCESS WITH A CRADLE-TO-GRAVE IMPACT THAT IS >10% ( i.e. if the 'Include?' column from step 2 has a row value of 'YES )

Sheet DQA Scoring Matrix
A1: Data Quality Score Aggregation
B3: ** See the notes on cells in the DQA Matrix Example tab explaining how to setup the spreadsheet and calculated the values in each cell.
B5: Weighting By GHG Contribution
B6: Total Represented (%) | C6: > | D6: Scale to 100% | E6: > | F6: Decimal format | G6: > | H6: Final cradle-to-gate aggregated score
B11: Indicator | D11: Priority Importance Weighting Factor (lower number = higher priority weighting) | E11: <Insert full dataset name, including the database and version>
E12: Aggregated DQI Score (between 1 and 5) | F12: Aggregated DQI Score * Priority Importance Weighting Factor
B13: Aggregated Flow-Level DQI (to be assessed for flows influencing GHG)
B14: Temporal Representativeness | D14: 1 | E14: ='Scoring Template'!C86 ->  | F14: =D14*E14 -> 
B15: Geographical Representativeness | D15: 1 | E15: ='Scoring Template'!D86 -> 
B16: Technological Representativeness | D16: 1 | E16: ='Scoring Template'!E86 -> 
B17: Data Collection Methods | D17: 1 | E17: ='Scoring Template'!F86 -> 
B18: Reliability | D18: 1 | E18: ='Scoring Template'!G86 ->  | F18: =D18*E18 -> 
B19: Process-level DQI
B20: Reviewed | D20: 1 | E20: ='Scoring Template'!C51 -> enter score
B21: Flow Completeness | D21: 1 | E21: ='Scoring Template'!D51 -> enter score | F21: =D21*E21 -> 
B22: Range Data Completeness | D22: 1 | E22: ='Scoring Template'!E51 -> enter score
B23: Data Attributes
B24: Reproducibility | D24: 1 | E24: ='Scoring Template'!F51 -> enter score
B25: Free-to-Use and Publicly Accessible | D25: 1 | E25: ='Scoring Template'!G51 -> enter score
B26: Interoperable | D26: 1 | E26: ='Scoring Template'!I51 -> enter score
B27: Maintained | D27: 1 | E27: ='Scoring Template'!H51 -> enter score
B28: LCIA Method Compatibility | D28: 1 | E28: ='Scoring Template'!C63 -> 
B29: Total | F29: =SUM(F14:F28) -> 
B31: % Contribution (individual process), above

Sheet Sheet1 (hidden)
A1: TRACI FLOWS | M1: Petroleum refining, at refinery OUTPUTS | Z1: Crude oil, on-shore import, at extraction OUTPUTS | AM1: Crude oil, on-shore domestic, at extraction OUTPUTS
A3: Flow | B3: Category | C3: Factor | D3: Unit | E3: Costs/Revenues | F3: Uncertainty | G3: Avoided product | H3: Provider | I3: Data quality entry | J3: Location | K3: Description | M3: Flow | N3: Category | O3: Amount | P3: Unit | Q3: Costs/Revenues | R3: Uncertainty | S3: Avoided product | T3: Provider | U3: Data quality entry | V3: Location | W3: Description | X3: in TRACI? | Z3: Flow | AA3: Category | AB3: Amount | AC3: Unit | AD3: Costs/Revenues | AE3: Uncertainty | AF3: Avoided product | AG3: Provider | AH3: Data quality entry | AI3: Location | AJ3: Description | AK3: in TRACI? | AM3: Flow | AN3: Category | AO3: Amount | AP3: Unit | AQ3: Costs/Revenues | AR3: Uncertainty | AS3: Avoided product | AT3: Provider | AU3: Data quality entry | AV3: Location | AW3: Description | AX3: in TRACI?
A4: 1,1,1-Trichloroethane | B4: Elementary Flows/emission/air | C4: 160 | D4: kg CO2 eq/kg | F4: none | M4: 1,1,1-Trichloroethane | N4: Elementary Flows/emission/air | O4: 9.10E-10 | P4: kg | R4: none | X4: =IF(COUNTIF($A$4:$A$288,M4)>0,"Yes","No") -> Yes | Z4: Crude oil, at extraction | AA4: Technosphere Flows/21: Mining, Quarrying, and Oil and Gas Extraction/2111: Oil and Gas Extraction | AB4: 1 | AC4: kg | AE4: none | AK4: =IF(COUNTIF($A$4:$A$288,Z4)>0,"Yes","No") -> No | AM4: Crude oil, at extraction | AN4: Technosphere Flows/21: Mining, Quarrying, and Oil and Gas Extraction/2111: Oil and Gas Extraction | AO4: 1 | AP4: kg | AR4: none | AX4: =IF(COUNTIF($A$4:$A$288,AM4)>0,"Yes","No") -> No
A5: 1,1,1-Trichloroethane | B5: Elementary Flows/emission/air/troposphere/rural | C5: 160 | D5: kg CO2 eq/kg | F5: none | M5: 1,1,2,2-Tetrachloroethane | N5: Elementary Flows/emission/air | O5: 3.10E-11 | P5: kg | R5: none | X5: =IF(COUNTIF($A$4:$A$288,M5)>0,"Yes","No") -> No | Z5: Disposal, solid waste, process, to sanitary landfill | AA5: Technosphere Flows/CUTOFF Flows | AB5: 0.0247 | AC5: kg | AE5: none | AK5: =IF(COUNTIF($A$4:$A$288,Z5)>0,"Yes","No") -> No | AM5: Disposal, solid waste, process, to sanitary landfill | AN5: Technosphere Flows/CUTOFF Flows | AO5: 2.47E-02 | AP5: kg | AR5: none | AX5: =IF(COUNTIF($A$4:$A$288,AM5)>0,"Yes","No") -> No
A6: 1,2-Dichloroethane | B6: Elementary Flows/emission/air/stratosphere | C6: 1 | D6: kg CO2 eq/kg | F6: none | M6: 1,1,2-Trichloroethane | N6: Elementary Flows/emission/air | O6: 9.20E-12 | P6: kg | R6: none | X6: No | Z6: 1,1,1-Trichloroethane | AA6: Elementary Flows/emission/air | AB6: 1.61E-08 | AC6: kg | AE6: none | AK6: Yes | AM6: 1,1,1-Trichloroethane | AN6: Elementary Flows/emission/air | AO6: 1.26E-08 | AP6: kg | AR6: none | AX6: Yes
A7: 1,2-Dichloroethane | B7: Elementary Flows/emission/air | C7: 1 | D7: kg CO2 eq/kg | F7: none | M7: 1,1-Dichloroethane | N7: Elementary Flows/emission/air | O7: 5.00E-12 | P7: kg | R7: none | X7: No | Z7: 1,1,2,2-Tetrachloroethane | AA7: Elementary Flows/emission/air | AB7: 1.73E-08 | AC7: kg | AE7: none | AK7: No | AM7: 1,1,2,2-Tetrachloroethane | AN7: Elementary Flows/emission/air | AO7: 1.35E-08 | AP7: kg | AR7: none | AX7: No
A8: 1,2-Dichloroethane | B8: Elementary Flows/emission/air/troposphere/rural | C8: 1 | D8: kg CO2 eq/kg | F8: none | M8: 1,2,3,4,6,7,8,9-Octachlorodibenzo-p-dioxin | N8: Elementary Flows/emission/air | O8: 2.20E-15 | P8: kg | R8: none | X8: No | Z8: 1,1,2-Trichloroethane | AA8: Elementary Flows/emission/air | AB8: 1.02E-08 | AC8: kg | AE8: none | AK8: No | AM8: 1,1,2-Trichloroethane | AN8: Elementary Flows/emission/air | AO8: 8.02E-09 | AP8: kg | AR8: none | AX8: No
A9: 1,2-Dichloroethane | B9: Elementary Flows/emission/air/troposphere/urban | C9: 1 | D9: kg CO2 eq/kg | F9: none | M9: 1,2,3,4,6,7,8,9-Octachlorodibenzofuran | N9: Elementary Flows/emission/air | O9: 1.60E-15 | P9: kg | R9: none | X9: No | Z9: 1,1-Dichloroethane | AA9: Elementary Flows/emission/air | AB9: 7.59E-09 | AC9: kg | AE9: none | AK9: No | AM9: 1,1-Dichloroethane | AN9: Elementary Flows/emission/air | AO9: 5.94E-09 | AP9: kg | AR9: none | AX9: No
A10: Carbon dioxide | B10: Elementary Flows/emission/air/stratosphere | C10: 1 | D10: kg CO2 eq/kg | F10: none | M10: 1,2,3,4,6,7,8-Heptachlorodibenzo-p-dioxin | N10: Elementary Flows/emission/air | O10: 1.50E-15 | P10: kg | R10: none | X10: No | Z10: 1,1-Dichloroethylene | AA10: Elementary Flows/emission/air | AB10: 1.58E-12 | AC10: kg | AE10: none | AK10: No | AM10: 1,1-Dichloroethylene | AN10: Elementary Flows/emission/air | AO10: 1.24E-12 | AP10: kg | AR10: none | AX10: No
A11: Carbon dioxide | B11: Elementary Flows/emission/air | C11: 1 | D11: kg CO2 eq/kg | F11: none | M11: 1,2,3,4,6,7,8-Heptachlorodibenzofuran | N11: Elementary Flows/emission/air | O11: 5.50E-15 | P11: kg | R11: none | X11: No | Z11: 1,2-Butadiene | AA11: Elementary Flows/emission/air | AB11: 4.72E-07 | AC11: kg | AE11: none | AJ11: Proxy for butadiene | AK11: No | AM11: 1,2-Butadiene | AN11: Elementary Flows/emission/air | AO11: 3.70E-07 | AP11: kg | AR11: none | AW11: Proxy for butadiene | AX11: No
A12: Carbon dioxide | B12: Elementary Flows/emission/air/troposphere/high | C12: 1 | D12: kg CO2 eq/kg | F12: none | M12: 1,2,3,4,6,7,8-Heptachlorodibenzofuran | N12: Elementary Flows/emission/water | O12: 4.10E-16 | P12: kg | R12: none | X12: No | Z12: 1,2-Dichloropropane | AA12: Elementary Flows/emission/air | AB12: 8.71E-09 | AC12: kg | AE12: none | AK12: No | AM12: 1,2-Dichloropropane | AN12: Elementary Flows/emission/air | AO12: 6.82E-09 | AP12: kg | AR12: none | AX12: No
A13: Carbon dioxide | B13: Elementary Flows/emission/air/troposphere/rural | C13: 1 | D13: kg CO2 eq/kg | F13: none | M13: 1,2,3,4,7,8,9-Heptachlorodibenzofuran | N13: Elementary Flows/emission/air | O13: 1.30E-15 | P13: kg | R13: none | X13: No | Z13: 1,3-Dichloropropene | AA13: Elementary Flows/emission/air | AB13: 8.51E-09 | AC13: kg | AE13: none | AK13: No | AM13: 1,3-Dichloropropene | AN13: Elementary Flows/emission/air | AO13: 6.66E-09 | AP13: kg | AR13: none | AX13: No
A14: Carbon dioxide | B14: Elementary Flows/emission/air/troposphere/urban | C14: 1 | D14: kg CO2 eq/kg | F14: none | M14: 1,2,3,4,7,8-Hexachlorodibenzo-p-dioxin | N14: Elementary Flows/emission/air | O14: 3.30E-16 | P14: kg | R14: none | X14: No | Z14: 1,4-Dioxane | AA14: Elementary Flows/emission/air | AB14: 1.29E-10 | AC14: kg | AE14: none | AK14: No | AM14: 1,4-Dioxane | AN14: Elementary Flows/emission/air | AO14: 1.01E-10 | AP14: kg | AR14: none | AX14: No
A15: Carbon dioxide | B15: Elementary Flows/emission/air/troposphere/very high | C15: 1 | D15: kg CO2 eq/kg | F15: none | M15: 1,2,3,4,7,8-Hexachlorodibenzofuran | N15: Elementary Flows/emission/air | O15: 1.90E-15 | P15: kg | R15: none | X15: No | Z15: 2,2,4-Trimethylpentane | AA15: Elementary Flows/emission/air | AB15: 2.08E-07 | AC15: kg | AE15: none | AK15: No | AM15: 2,2,4-Trimethylpentane | AN15: Elementary Flows/emission/air | AO15: 1.63E-07 | AP15: kg | AR15: none | AX15: No
A16: Carbon tetrachloride | B16: Elementary Flows/emission/air | C16: 1730 | D16: kg CO2 eq/kg | F16: none | M16: 1,2,3,4,7,8-Hexachlorodibenzofuran | N16: Elementary Flows/emission/water | O16: 3.30E-16 | P16: kg | R16: none | X16: No | Z16: 2-Ethoxyethanol | AA16: Elementary Flows/emission/air | AB16: 9.04E-15 | AC16: kg | AE16: none | AK16: No | AM16: 2-Ethoxyethanol | AN16: Elementary Flows/emission/air | AO16: 7.07E-15 | AP16: kg | AR16: none | AX16: No
A17: Carbon tetrachloride | B17: Elementary Flows/emission/air/troposphere/urban | C17: 1730 | D17: kg CO2 eq/kg | F17: none | M17: 1,2,3,6,7,8-Hexachlorodibenzo-p-dioxin | N17: Elementary Flows/emission/air | O17: 4.90E-16 | P17: kg | R17: none | X17: No | Z17: 2-Methoxyethanol | AA17: Elementary Flows/emission/air | AB17: 2.98e-10 | AC17: kg | AE17: none | AK17: No | AM17: 2-Methoxyethanol | AN17: Elementary Flows/emission/air | AO17: 2.34E-10 | AP17: kg | AR17: none | AX17: No
A18: Carbon tetrafluoride | B18: Elementary Flows/emission/air | C18: 6630 | D18: kg CO2 eq/kg | F18: none | M18: 1,2,3,6,7,8-Hexachlorodibenzo-p-dioxin | N18: Elementary Flows/emission/water | O18: 5.10E-17 | P18: kg | R18: none | X18: No | Z18: 2-Methylnaphthalene | AA18: Elementary Flows/emission/air | AB18: 2.18e-10 | AC18: kg | AE18: none | AK18: No | AM18: 2-Methylnaphthalene | AN18: Elementary Flows/emission/air | AO18: 1.70E-10 | AP18: kg | AR18: none | AX18: No
A19: Carbon tetrafluoride | B19: Elementary Flows/emission/air/troposphere/urban | C19: 6630 | D19: kg CO2 eq/kg | F19: none | M19: 1,2,3,6,7,8-Hexachlorodibenzofuran | N19: Elementary Flows/emission/air | O19: 2.00E-15 | P19: kg | R19: none | X19: No | Z19: 3-Methylcholanthrene | AA19: Elementary Flows/emission/air | AB19: 7.55E-14 | AC19: kg | AE19: none | AK19: No | AM19: 3-Methylcholanthrene | AN19: Elementary Flows/emission/air | AO19: 5.91E-14 | AP19: kg | AR19: none | AX19: No
A20: CFC-11 | B20: Elementary Flows/emission/air | C20: 4660 | D20: kg CO2 eq/kg | F20: none | M20: 1,2,3,7,8,9-Hexachlorodibenzo-p-dioxin | N20: Elementary Flows/emission/air | O20: 4.10E-16 | P20: kg | R20: none | X20: No | Z20: 7,12-Dimethylbenz[a]anthracene | AA20: Elementary Flows/emission/air | AB20: 6.71E-13 | AC20: kg | AE20: none | AK20: No | AM20: 7,12-Dimethylbenz[a]anthracene | AN20: Elementary Flows/emission/air | AO20: 5.25E-13 | AP20: kg | AR20: none | AX20: No
A21: CFC-11 | B21: Elementary Flows/emission/air/troposphere/urban | C21: 4660 | D21: kg CO2 eq/kg | F21: none | M21: 1,2,3,7,8,9-Hexachlorodibenzo-p-dioxin | N21: Elementary Flows/emission/water | O21: 4.80E-17 | P21: kg | R21: none | X21: No | Z21: Acenaphthene | AA21: Elementary Flows/emission/air | AB21: 1.16E-11 | AC21: kg | AE21: none | AK21: No | AM21: Acenaphthene | AN21: Elementary Flows/emission/air | AO21: 9.11E-12 | AP21: kg | AR21: none | AX21: No
A22: CFC-113 | B22: Elementary Flows/emission/air | C22: 5820 | D22: kg CO2 eq/kg | F22: none | M22: 1,2,3,7,8,9-Hexachlorodibenzofuran | N22: Elementary Flows/emission/air | O22: 1.20E-15 | P22: kg | R22: none | X22: No | Z22: Acenaphthylene | AA22: Elementary Flows/emission/air | AB22: 3.50E-11 | AC22: kg | AE22: none | AK22: No | AM22: Acenaphthylene | AN22: Elementary Flows/emission/air | AO22: 2.74E-11 | AP22: kg | AR22: none | AX22: No
A23: CFC-113 | B23: Elementary Flows/emission/air/troposphere/rural | C23: 5820 | D23: kg CO2 eq/kg | F23: none | M23: 1,2,3,7,8-Pentachlorodibenzo-p-dioxin | N23: Elementary Flows/emission/air | O23: 3.20E-16 | P23: kg | R23: none | X23: No | Z23: Acetaldehyde | AA23: Elementary Flows/emission/air | AB23: 2.64E-06 | AC23: kg | AE23: none | AK23: No | AM23: Acetaldehyde | AN23: Elementary Flows/emission/air | AO23: 2.07E-06 | AP23: kg | AR23: none | AX23: No
A24: CFC-113 | B24: Elementary Flows/emission/air/troposphere/urban | C24: 5820 | D24: kg CO2 eq/kg | F24: none | M24: 1,2,3,7,8-Pentachlorodibenzo-p-dioxin | N24: Elementary Flows/emission/water | O24: 4.00E-17 | P24: kg | R24: none | X24: No | Z24: Acetophenone | AA24: Elementary Flows/emission/air | AB24: 1.13e-12 | AC24: kg | AE24: none | AK24: No | AM24: Acetophenone | AN24: Elementary Flows/emission/air | AO24: 8.83E-13 | AP24: kg | AR24: none | AX24: No
A25: CFC-114 | B25: Elementary Flows/emission/air | C25: 8590 | D25: kg CO2 eq/kg | F25: none | M25: 1,2,3,7,8-Pentachlorodibenzofuran | N25: Elementary Flows/emission/air | O25: 1.40E-15 | P25: kg | R25: none | X25: No | Z25: Acrolein | AA25: Elementary Flows/emission/air | AB25: 2.33E-06 | AC25: kg | AE25: none | AK25: No | AM25: Acrolein | AN25: Elementary Flows/emission/air | AO25: 1.83E-06 | AP25: kg | AR25: none | AX25: No
A26: CFC-114 | B26: Elementary Flows/emission/air/troposphere/rural | C26: 8590 | D26: kg CO2 eq/kg | F26: none | M26: 1,2,4-Trichlorobenzene | N26: Elementary Flows/emission/air | O26: 9.10E-12 | P26: kg | R26: none | X26: No | Z26: Acrylamide | AA26: Elementary Flows/emission/air | AB26: 4.26E-14 | AC26: kg | AE26: none | AK26: No | AM26: Acrylamide | AN26: Elementary Flows/emission/air | AO26: 3.34E-14 | AP26: kg | AR26: none | AX26: No
A27: CFC-12 | B27: Elementary Flows/emission/air | C27: 10200 | D27: kg CO2 eq/kg | F27: none | M27: 1,2,4-Trimethylbenzene | N27: Elementary Flows/emission/air | O27: 2.10E-07 | P27: kg | R27: none | X27: No | Z27: Ammonia | AA27: Elementary Flows/emission/air | AB27: 3.39E-07 | AC27: kg | AE27: none | AK27: No | AM27: Ammonia | AN27: Elementary Flows/emission/air | AO27: 2.65E-07 | AP27: kg | AR27: none | AX27: No
A28: CFC-12 | B28: Elementary Flows/emission/air/troposphere/rural | C28: 10200 | D28: kg CO2 eq/kg | F28: none | M28: 1,2,4-Trimethylbenzene | N28: Elementary Flows/emission/water | O28: 6.90E-10 | P28: kg | R28: none | X28: No | Z28: Ammonia | AA28: Elementary Flows/emission/water | AB28: 4.84E-08 | AC28: kg | AE28: none | AK28: No | AM28: Ammonia | AN28: Elementary Flows/emission/water | AO28: 4.84E-08 | AP28: kg | AR28: none | AX28: No
A29: CFC-12 | B29: Elementary Flows/emission/air/troposphere/urban | C29: 10200 | D29: kg CO2 eq/kg | F29: none | M29: 1,2-Dichloroethane | N29: Elementary Flows/emission/air | O29: 1.10E-09 | P29: kg | R29: none | X29: Yes | Z29: Anthracene | AA29: Elementary Flows/emission/air | AB29: 3.82E-12 | AC29: kg | AE29: none | AK29: No | AM29: Anthracene | AN29: Elementary Flows/emission/air | AO29: 2.99E-12 | AP29: kg | AR29: none | AX29: No
A30: CFC-13 | B30: Elementary Flows/emission/air | C30: 13900 | D30: kg CO2 eq/kg | F30: none | M30: 1,2-Dichloropropane | N30: Elementary Flows/emission/air | O30: 5.90E-12 | P30: kg | R30: none | X30: No | Z30: Aromatic hydrocarbons | AA30: Elementary Flows/emission/air | AB30: 4.80E-09 | AC30: kg | AE30: none | AK30: No | AM30: Aromatic hydrocarbons | AN30: Elementary Flows/emission/air | AO30: 3.76E-09 | AP30: kg | AR30: none | AX30: No
A31: Chlorofluorocarbons | B31: Elementary Flows/emission/air | C31: 0 | D31: kg CO2 eq/kg | F31: none | M31: 1,3-Butadiene | N31: Elementary Flows/emission/water | O31: 5.30E-11 | P31: kg | R31: none | X31: No | Z31: Aromatic hydrocarbons | AA31: Elementary Flows/emission/water | AB31: 1.92E-07 | AC31: kg | AE31: none | AK31: No | AM31: Aromatic hydrocarbons | AN31: Elementary Flows/emission/water | AO31: 1.92E-07 | AP31: kg | AR31: none | AX31: No
A32: Chloroform | B32: Elementary Flows/emission/air | C32: 16 | D32: kg CO2 eq/kg | F32: none | M32: 1,3-Dichloropropene | N32: Elementary Flows/emission/air | O32: 1.20E-11 | P32: kg | R32: none | X32: No | Z32: Arsenic | AA32: Elementary Flows/emission/air | AB32: 1.57E-09 | AC32: kg | AE32: none | AK32: No | AM32: Arsenic | AN32: Elementary Flows/emission/air | AO32: 1.23E-09 | AP32: kg | AR32: none | AX32: No
A33: Chloroform | B33: Elementary Flows/emission/air/troposphere/rural | C33: 16 | D33: kg CO2 eq/kg | F33: none | M33: 1,4-Dioxane | N33: Elementary Flows/emission/air | O33: 1.20E-11 | P33: kg | R33: none | X33: No | Z33: Benz[a]anthracene | AA33: Elementary Flows/emission/air | AB33: 2.13E-10 | AC33: kg | AE33: none | AK33: No | AM33: Benz[a]anthracene | AN33: Elementary Flows/emission/air | AO33: 1.66E-10 | AP33: kg | AR33: none | AX33: No
A34: Chloroform | B34: Elementary Flows/emission/air/troposphere/urban | C34: 16 | D34: kg CO2 eq/kg | F34: none | M34: 1-Butanol | N34: Elementary Flows/emission/air | O34: 7.40E-10 | P34: kg | R34: none | X34: No | Z34: Benzene | AA34: Elementary Flows/emission/air | AB34: 3.06E-05 | AC34: kg | AE34: none | AK34: No | AM34: Benzene | AN34: Elementary Flows/emission/air | AO34: 2.40E-05 | AP34: kg | AR34: none | AX34: No
A35: Chloromethane | B35: Elementary Flows/emission/air | C35: 12 | D35: kg CO2 eq/kg | F35: none | M35: 1-Methylnaphthalene | N35: Elementary Flows/emission/air | O35: 1.70E-10 | P35: kg | R35: none | X35: No | Z35: Benzo(b)fluoranthene | AA35: Elementary Flows/emission/air | AB35: 1.07E-12 | AC35: kg | AE35: none | AK35: No | AM35: Benzo(b)fluoranthene | AN35: Elementary Flows/emission/air | AO35: 8.41E-13 | AP35: kg | AR35: none | AX35: No
A36: Chloromethane | B36: Elementary Flows/emission/air/troposphere/rural | C36: 12 | D36: kg CO2 eq/kg | F36: none | M36: 2,2,4-Trimethylpentane | N36: Elementary Flows/emission/air | O36: 1.80E-07 | P36: kg | R36: none | X36: No | Z36: Benzo[a]pyrene | AA36: Elementary Flows/emission/air | AB36: 2.03e-12 | AC36: kg | AE36: none | AK36: No | AM36: Benzo[a]pyrene | AN36: Elementary Flows/emission/air | AO36: 1.59E-12 | AP36: kg | AR36: none | AX36: No
A37: Chloromethane | B37: Elementary Flows/emission/air/troposphere/urban | C37: 12 | D37: kg CO2 eq/kg | F37: none | M37: 2,3,4,6,7,8-Hexachlorodibenzofuran | N37: Elementary Flows/emission/air | O37: 1.90E-15 | P37: kg | R37: none | X37: No | Z37: Benzo[e]pyrene | AA37: Elementary Flows/emission/air | AB37: 1.61e-12 | AC37: kg | AE37: none | AK37: No | AM37: Benzo[e]pyrene | AN37: Elementary Flows/emission/air | AO37: 1.26E-12 | AP37: kg | AR37: none | AX37: No
A38: Dibromomethane | B38: Elementary Flows/emission/air | C38: 1 | D38: kg CO2 eq/kg | F38: none | M38: 2,3,4,6,7,8-Hexachlorodibenzofuran | N38: Elementary Flows/emission/water | O38: 5.30E-17 | P38: kg | R38: none | X38: No | Z38: Benzo[ghi]perylene | AA38: Elementary Flows/emission/air | AB38: 2.12E-09 | AC38: kg | AE38: none | AK38: No | AM38: Benzo[ghi]perylene | AN38: Elementary Flows/emission/air | AO38: 1.66E-09 | AP38: kg | AR38: none | AX38: No
A39: Ethane, 1-ethoxy-1,1,2,2-tetrafluoro- | B39: Elementary Flows/emission/air/troposphere/high | C39: 627 | D39: kg CO2 eq/kg | F39: none | M39: 2,3,4,7,8-Pentachlorodibenzofuran | N39: Elementary Flows/emission/air | O39: 1.70E-15 | P39: kg | R39: none | X39: No | Z39: Benzo[k]fluoranthene | AA39: Elementary Flows/emission/air | AB39: 1.90E-13 | AC39: kg | AE39: none | AK39: No | AM39: Benzo[k]fluoranthene | AN39: Elementary Flows/emission/air | AO39: 1.49E-13 | AP39: kg | AR39: none | AX39: No
A40: Halon 1211 | B40: Elementary Flows/emission/air | C40: 1750 | D40: kg CO2 eq/kg | F40: none | M40: 2,3,4,7,8-Pentachlorodibenzofuran | N40: Elementary Flows/emission/water | O40: 7.70E-17 | P40: kg | R40: none | X40: No | Z40: Beryllium | AA40: Elementary Flows/emission/air | AB40: 4.71E-11 | AC40: kg | AE40: none | AK40: No | AM40: Beryllium | AN40: Elementary Flows/emission/air | AO40: 3.69E-11 | AP40: kg | AR40: none | AX40: No
A41: Halon 1211 | B41: Elementary Flows/emission/air/troposphere/rural | C41: 1750 | D41: kg CO2 eq/kg | F41: none | M41: 2,3,7,8-Tetrachlorodibenzo-p-dioxin | N41: Elementary Flows/emission/air | O41: 4.00E-16 | P41: kg | R41: none | X41: No | Z41: Biphenyl | AA41: Elementary Flows/emission/air | AB41: 1.16E-08 | AC41: kg | AE41: none | AK41: No | AM41: Biphenyl | AN41: Elementary Flows/emission/air | AO41: 9.09E-09 | AP41: kg | AR41: none | AX41: No
A42: Halon 1301 | B42: Elementary Flows/emission/air | C42: 6290 | D42: kg CO2 eq/kg | F42: none | M42: 2,3,7,8-Tetrachlorodibenzo-p-dioxin | N42: Elementary Flows/emission/water | O42: 1.70E-17 | P42: kg | R42: none | X42: No | Z42: Bromide | AA42: Elementary Flows/emission/water | AB42: 2.14E-10 | AC42: kg | AE42: none | AK42: No | AM42: Bromide | AN42: Elementary Flows/emission/water | AO42: 2.14E-10 | AP42: kg | AR42: none | AX42: No
A43: Halon 1301 | B43: Elementary Flows/emission/air/troposphere/rural | C43: 6290 | D43: kg CO2 eq/kg | F43: none | M43: 2,3,7,8-Tetrachlorodibenzofuran | N43: Elementary Flows/emission/air | O43: 1.20E-15 | P43: kg | R43: none | X43: No | Z43: Cadmium | AA43: Elementary Flows/emission/air | AB43: 1.66e-10 | AC43: kg | AE43: none | AK43: No | AM43: Cadmium | AN43: Elementary Flows/emission/air | AO43: 1.30E-10 | AP43: kg | AR43: none | AX43: No
A44: Halon 1301 | B44: Elementary Flows/emission/air/troposphere/urban | C44: 6290 | D44: kg CO2 eq/kg | F44: none | M44: 2,3,7,8-Tetrachlorodibenzofuran | N44: Elementary Flows/emission/water | O44: 3.50E-17 | P44: kg | R44: none | X44: No | Z44: Carbon dioxide | AA44: Elementary Flows/emission/air | AB44: 0.4378 | AC44: kg | AE44: none | AK44: Yes | AM44: Carbon dioxide | AN44: Elementary Flows/emission/air | AO44: 3.43E-01 | AP44: kg | AR44: none | AX44: Yes
A45: HCFC-123 | B45: Elementary Flows/emission/air | C45: 79 | D45: kg CO2 eq/kg | F45: none | M45: 2,4,5-Trichlorophenol | N45: Elementary Flows/emission/air | O45: 9.10E-12 | P45: kg | R45: none | X45: No | Z45: Carbon disulfide | AA45: Elementary Flows/emission/air | AB45: 8.22E-10 | AC45: kg | AE45: none | AK45: No | AM45: Carbon disulfide | AN45: Elementary Flows/emission/air | AO45: 6.43E-10 | AP45: kg | AR45: none | AX45: No
A46: HCFC-124 | B46: Elementary Flows/emission/air | C46: 527 | D46: kg CO2 eq/kg | F46: none | M46: 2,4,6-Trichlorophenol | N46: Elementary Flows/emission/air | O46: 1.00E-11 | P46: kg | R46: none | X46: No | Z46: Carbon monoxide | AA46: Elementary Flows/emission/air | AB46: 8.06E-04 | AC46: kg | AE46: none | AK46: No | AM46: Carbon monoxide | AN46: Elementary Flows/emission/air | AO46: 6.31E-04 | AP46: kg | AR46: none | AX46: No
A47: HCFC-141b | B47: Elementary Flows/emission/air | C47: 782 | D47: kg CO2 eq/kg | F47: none | M47: 2,4-Dimethylphenol | N47: Elementary Flows/emission/air | O47: 1.80E-10 | P47: kg | R47: none | X47: No | Z47: Carbonyl sulfide | AA47: Elementary Flows/emission/air | AB47: 1.55E-07 | AC47: kg | AE47: none | AK47: No | AM47: Carbonyl sulfide | AN47: Elementary Flows/emission/air | AO47: 1.22E-07 | AP47: kg | AR47: none | AX47: No
A48: HCFC-21 | B48: Elementary Flows/emission/air | C48: 148 | D48: kg CO2 eq/kg | F48: none | M48: 2,4-Dimethylphenol | N48: Elementary Flows/emission/water | O48: 1.50E-10 | P48: kg | R48: none | X48: No | Z48: Chloride | AA48: Elementary Flows/emission/water | AB48: 1.57E-06 | AC48: kg | AE48: none | AK48: No | AM48: Chloride | AN48: Elementary Flows/emission/water | AO48: 1.57E-06 | AP48: kg | AR48: none | AX48: No
A49: HCFC-21 | B49: Elementary Flows/emission/air/troposphere/urban | C49: 148 | D49: kg CO2 eq/kg | F49: none | M49: 2,4-Dinitrophenol | N49: Elementary Flows/emission/air | O49: 9.10E-12 | P49: kg | R49: none | X49: No | Z49: Chlorine | AA49: Elementary Flows/emission/air | AB49: 2.31e-10 | AC49: kg | AE49: none | AK49: No | AM49: Chlorine | AN49: Elementary Flows/emission/air | AO49: 1.81E-10 | AP49: kg | AR49: none | AX49: No
A50: HCFC-22 | B50: Elementary Flows/emission/air/indoor | C50: 1760 | D50: kg CO2 eq/kg | F50: none | M50: 2,4-Dinitrotoluene | N50: Elementary Flows/emission/air | O50: 9.10E-12 | P50: kg | R50: none | X50: No | Z50: Chlorine | AA50: Elementary Flows/emission/water | AB50: 6.54E-13 | AC50: kg | AE50: none | AK50: No | AM50: Chlorine | AN50: Elementary Flows/emission/water | AO50: 6.54E-13 | AP50: kg | AR50: none | AX50: No
A51: HCFC-22 | B51: Elementary Flows/emission/air | C51: 1760 | D51: kg CO2 eq/kg | F51: none | M51: 2-Ethoxyethanol | N51: Elementary Flows/emission/water | O51: 2.10E-10 | P51: kg | R51: none | X51: No | Z51: Chlorobenzene | AA51: Elementary Flows/emission/air | AB51: 1.08E-08 | AC51: kg | AE51: none | AK51: No | AM51: Chlorobenzene | AN51: Elementary Flows/emission/air | AO51: 8.47E-09 | AP51: kg | AR51: none | AX51: No
A52: HCFC-22 | B52: Elementary Flows/emission/air/troposphere/rural | C52: 1760 | D52: kg CO2 eq/kg | F52: none | M52: 2-Methoxyethanol | N52: Elementary Flows/emission/air | O52: 2.50E-10 | P52: kg | R52: none | X52: No | Z52: Chloroethane | AA52: Elementary Flows/emission/air | AB52: 1.02e-10 | AC52: kg | AE52: none | AK52: No | AM52: Chloroethane | AN52: Elementary Flows/emission/air | AO52: 4.39E-09 | AP52: kg | AR52: none | AW52: Proxy for Ethene, chloro- | AX52: No
A53: HCFC-22 | B53: Elementary Flows/emission/air/troposphere/urban | C53: 1760 | D53: kg CO2 eq/kg | F53: none | M53: 2-Methylnaphthalene | N53: Elementary Flows/emission/air | O53: 2.80E-10 | P53: kg | R53: none | X53: No | Z53: Chloroethane | AA53: Elementary Flows/emission/air | AB53: 5.61E-09 | AC53: kg | AE53: none | AJ53: Proxy for Ethene, chloro- | AK53: No | AM53: Chloroethane | AN53: Elementary Flows/emission/air | AO53: 7.95E-11 | AP53: kg | AR53: none | AX53: No
A54: Hexafluoroethane | B54: Elementary Flows/emission/air | C54: 11100 | D54: kg CO2 eq/kg | F54: none | M54: 2-Methylnaphthalene | N54: Elementary Flows/emission/water | O54: 2.20E-11 | P54: kg | R54: none | X54: No | Z54: Chlorofluorocarbons | AA54: Elementary Flows/emission/air | AB54: 1.11E-08 | AC54: kg | AE54: none | AJ54: Proxy for CFC-10 | AK54: Yes | AM54: Chlorofluorocarbons | AN54: Elementary Flows/emission/air | AO54: 8.71E-09 | AP54: kg | AR54: none | AW54: Proxy for CFC-10 | AX54: Yes
A55: Hexafluoroethane | B55: Elementary Flows/emission/air/troposphere/urban | C55: 11100 | D55: kg CO2 eq/kg | F55: none | M55: 2-Nitropropane | N55: Elementary Flows/emission/air | O55: 8.60E-11 | P55: kg | R55: none | X55: No | Z55: Chloroform | AA55: Elementary Flows/emission/air | AB55: 9.26E-09 | AC55: kg | AE55: none | AK55: Yes | AM55: Chloroform | AN55: Elementary Flows/emission/air | AO55: 7.25E-09 | AP55: kg | AR55: none | AX55: Yes
A56: HFC-125 | B56: Elementary Flows/emission/air | C56: 3170 | D56: kg CO2 eq/kg | F56: none | M56: 3,3'-Dichlorobenzidine | N56: Elementary Flows/emission/air | O56: 9.10E-12 | P56: kg | R56: none | X56: No | Z56: Chloromethane | AA56: Elementary Flows/emission/air | AB56: 5.36e-14 | AC56: kg | AE56: none | AK56: Yes | AM56: Chloromethane | AN56: Elementary Flows/emission/air | AO56: 4.19E-14 | AP56: kg | AR56: none | AX56: Yes
A57: HFC-134a | B57: Elementary Flows/emission/air | C57: 1300 | D57: kg CO2 eq/kg | F57: none | M57: 3,3'-Dimethoxybenzidine | N57: Elementary Flows/emission/air | O57: 6.30E-11 | P57: kg | R57: none | X57: No | Z57: Chloromethane | AA57: Elementary Flows/emission/air | AB57: 3.14E-08 | AC57: kg | AE57: none | AJ57: Proxy for Methane, dichloro-, HCC-30 | AK57: Yes | AM57: Chloromethane | AN57: Elementary Flows/emission/air | AO57: 2.46E-08 | AP57: kg | AR57: none | AW57: Proxy for Methane, dichloro-, HCC-30 | AX57: Yes
A58: HFC-134a | B58: Elementary Flows/emission/air/troposphere/rural | C58: 1300 | D58: kg CO2 eq/kg | F58: none | M58: 3,3'-Dimethylbenzidine | N58: Elementary Flows/emission/air | O58: 4.40E-11 | P58: kg | R58: none | X58: No | Z58: Chromium(III) | AA58: Elementary Flows/emission/air | AB58: 9.39E-10 | AC58: kg | AE58: none | AK58: No | AM58: Chromium(III) | AN58: Elementary Flows/emission/air | AO58: 7.35E-10 | AP58: kg | AR58: none | AX58: No
A59: HFC-134a | B59: Elementary Flows/emission/air/troposphere/urban | C59: 1300 | D59: kg CO2 eq/kg | F59: none | M59: 3-Methylcholanthrene | N59: Elementary Flows/emission/air | O59: 2.90E-14 | P59: kg | R59: none | X59: No | Z59: Chromium(IV) | AA59: Elementary Flows/emission/air | AB59: 4.41E-10 | AC59: kg | AE59: none | AK59: No | AM59: Chromium(IV) | AN59: Elementary Flows/emission/air | AO59: 3.45E-10 | AP59: kg | AR59: none | AX59: No
A60: HFC-143 | B60: Elementary Flows/emission/air | C60: 328 | D60: kg CO2 eq/kg | F60: none | M60: 4-Dimethylaminoazobenzene | N60: Elementary Flows/emission/air | O60: 5.20E-12 | P60: kg | R60: none | X60: No | Z60: Chrysene | AA60: Elementary Flows/emission/air | AB60: 6.07E-12 | AC60: kg | AE60: none | AK60: No | AM60: Chrysene | AN60: Elementary Flows/emission/air | AO60: 4.75E-12 | AP60: kg | AR60: none | AX60: No
A61: HFC-143a | B61: Elementary Flows/emission/air | C61: 4800 | D61: kg CO2 eq/kg | F61: none | M61: Acenaphthene | N61: Elementary Flows/emission/air | O61: 1.80E-12 | P61: kg | R61: none | X61: No | Z61: Cobalt | AA61: Elementary Flows/emission/air | AB61: 6.06E-12 | AC61: kg | AE61: none | AK61: No | AM61: Cobalt | AN61: Elementary Flows/emission/air | AO61: 4.75E-12 | AP61: kg | AR61: none | AX61: No
A62: HFC-152a | B62: Elementary Flows/emission/air | C62: 138 | D62: kg CO2 eq/kg | F62: none | M62: Acenaphthene | N62: Elementary Flows/emission/water | O62: 7.60E-13 | P62: kg | R62: none | X62: No | Z62: Copper | AA62: Elementary Flows/emission/water | AB62: 5.57E-11 | AC62: kg | AE62: none | AK62: No | AM62: Copper | AN62: Elementary Flows/emission/water | AO62: 5.57E-11 | AP62: kg | AR62: none | AX62: No
A63: HFC-152a | B63: Elementary Flows/emission/air/troposphere/rural | C63: 138 | D63: kg CO2 eq/kg | F63: none | M63: Acenaphthylene | N63: Elementary Flows/emission/air | O63: 2.60E-12 | P63: kg | R63: none | X63: No | Z63: Cresol | AA63: Elementary Flows/emission/air | AB63: 1.56e-12 | AC63: kg | AE63: none | AK63: No | AM63: Cresol | AN63: Elementary Flows/emission/air | AO63: 1.22E-12 | AP63: kg | AR63: none | AX63: No
A64: HFC-152a | B64: Elementary Flows/emission/air/troposphere/urban | C64: 138 | D64: kg CO2 eq/kg | F64: none | M64: Acenaphthylene | N64: Elementary Flows/emission/water | O64: 7.60E-13 | P64: kg | R64: none | X64: No | Z64: Cumene | AA64: Elementary Flows/emission/air | AB64: 1.92E-11 | AC64: kg | AE64: none | AK64: No | AM64: Cumene | AN64: Elementary Flows/emission/air | AO64: 1.50E-11 | AP64: kg | AR64: none | AX64: No
A65: HFC-23 | B65: Elementary Flows/emission/air | C65: 12400 | D65: kg CO2 eq/kg | F65: none | M65: Acetaldehyde | N65: Elementary Flows/emission/air | O65: 2.60E-08 | P65: kg | R65: none | X65: No | Z65: Cyanamide | AA65: Elementary Flows/emission/air | AB65: 1.62e-12 | AC65: kg | AE65: none | AK65: No | AM65: Cyanamide | AN65: Elementary Flows/emission/air | AO65: 1.27E-12 | AP65: kg | AR65: none | AX65: No
A66: HFC-23 | B66: Elementary Flows/emission/air/troposphere/urban | C66: 12400 | D66: kg CO2 eq/kg | F66: none | M66: Acetamide | N66: Elementary Flows/emission/air | O66: 8.50E-13 | P66: kg | R66: none | X66: No | Z66: Dibenz[a,h]anthracene | AA66: Elementary Flows/emission/air | AB66: 2.69E-13 | AC66: kg | AE66: none | AK66: No | AM66: Dibenz[a,h]anthracene | AN66: Elementary Flows/emission/air | AO66: 2.11E-13 | AP66: kg | AR66: none | AX66: No
A67: HFC-245fa | B67: Elementary Flows/emission/air | C67: 858 | D67: kg CO2 eq/kg | F67: none | M67: Acetonitrile | N67: Elementary Flows/emission/air | O67: 7.50E-09 | P67: kg | R67: none | X67: No | Z67: Dibromomethane | AA67: Elementary Flows/emission/air | AB67: 1.40E-15 | AC67: kg | AE67: none | AJ67: Proxy for Methane, bromo-, Halon 1001 | AK67: Yes | AM67: Dibromomethane | AN67: Elementary Flows/emission/air | AO67: 1.05E-08 | AP67: kg | AR67: none | AW67: Proxy for Ethane, 1,2-dibromo- | AX67: Yes
A68: HFC-32 | B68: Elementary Flows/emission/air | C68: 677 | D68: kg CO2 eq/kg | F68: none | M68: Acetonitrile | N68: Elementary Flows/emission/water | O68: 3.80E-10 | P68: kg | R68: none | X68: No | Z68: Dibromomethane | AA68: Elementary Flows/emission/air | AB68: 1.34E-08 | AC68: kg | AE68: none | AJ68: Proxy for Ethane, 1,2-dibromo- | AK68: Yes | AM68: Dibromomethane | AN68: Elementary Flows/emission/air | AO68: 1.09E-15 | AP68: kg | AR68: none | AW68: Proxy for Methane, bromo-, Halon 1001 | AX68: Yes
A69: Hydrochlorofluorocarbons | B69: Elementary Flows/emission/air | C69: 0 | D69: kg CO2 eq/kg | F69: none | M69: Acetophenone | N69: Elementary Flows/emission/air | O69: 6.10E-10 | P69: kg | R69: none | X69: =IF(COUNTIF($A$4:$A$288,M69)>0,"Yes","No") -> No | Z69: Dichlorobenzene | AA69: Elementary Flows/emission/air | AB69: 2.23E-09 | AC69: kg | AE69: none | AJ69: Proxy for Benzene, 1,4-dichloro- | AK69: =IF(COUNTIF($A$4:$A$288,Z69)>0,"Yes","No") -> No | AM69: Dichlorobenzene | AN69: Elementary Flows/emission/air | AO69: 1.74E-09 | AP69: kg | AR69: none | AW69: Proxy for Benzene, 1,4-dichloro- | AX69: =IF(COUNTIF($A$4:$A$288,AM69)>0,"Yes","No") -> No
A70: Hydrofluorocarbons | B70: Elementary Flows/emission/air | C70: 0 | D70: kg CO2 eq/kg | F70: none | M70: Acrolein | N70: Elementary Flows/emission/air | O70: 6.40E-09 | P70: kg | R70: none | X70: No | Z70: Diethanolamine | AA70: Elementary Flows/emission/air | AB70: 1.21e-10 | AC70: kg | AE70: none | AK70: No | AM70: Diethanolamine | AN70: Elementary Flows/emission/air | AO70: 9.45E-11 | AP70: kg | AR70: none | AX70: No
A71: Methane | B71: Elementary Flows/emission/air/stratosphere | C71: 28 | D71: kg CO2 eq/kg | F71: none | M71: Acrylonitrile | N71: Elementary Flows/emission/air | O71: 2.00E-11 | P71: kg | R71: none | X71: No | Z71: Ethane, 1,2-dichloro-1-fluoro- | AA71: Elementary Flows/emission/air | AB71: 5.99e-10 | AC71: kg | AE71: none | AK71: No | AM71: Ethane, 1,2-dichloro-1-fluoro- | AN71: Elementary Flows/emission/air | AO71: 4.69E-10 | AP71: kg | AR71: none | AX71: No
A72: Methane | B72: Elementary Flows/emission/air | C72: 28 | D72: kg CO2 eq/kg | F72: none | M72: Ammonia | N72: Elementary Flows/emission/air | O72: 3.30E-06 | P72: kg | R72: none | X72: No | Z72: Ethylbenzene | AA72: Elementary Flows/emission/air | AB72: 2.32E-06 | AC72: kg | AE72: none | AK72: No | AM72: Ethylbenzene | AN72: Elementary Flows/emission/air | AO72: 1.81E-06 | AP72: kg | AR72: none | AX72: No
A73: Methane | B73: Elementary Flows/emission/air/troposphere/high | C73: 28 | D73: kg CO2 eq/kg | F73: none | M73: Ammonia | N73: Elementary Flows/emission/water | O73: 2.00E-07 | P73: kg | R73: none | X73: No | Z73: Ethylbenzene | AA73: Elementary Flows/emission/water | AB73: 7.61E-13 | AC73: kg | AE73: none | AK73: No | AM73: Ethylbenzene | AN73: Elementary Flows/emission/water | AO73: 7.61E-13 | AP73: kg | AR73: none | AX73: No
A74: Methane | B74: Elementary Flows/emission/air/troposphere/rural | C74: 28 | D74: kg CO2 eq/kg | F74: none | M74: Aniline | N74: Elementary Flows/emission/air | O74: 9.20E-10 | P74: kg | R74: none | X74: No | Z74: Ethylene glycol | AA74: Elementary Flows/emission/air | AB74: 2.54E-11 | AC74: kg | AE74: none | AK74: No | AM74: Ethylene glycol | AN74: Elementary Flows/emission/air | AO74: 1.98E-11 | AP74: kg | AR74: none | AX74: No
A75: Methane | B75: Elementary Flows/emission/air/troposphere/urban | C75: 28 | D75: kg CO2 eq/kg | F75: none | M75: Anthracene | N75: Elementary Flows/emission/air | O75: 4.10E-11 | P75: kg | R75: none | X75: No | Z75: Ethylene oxide | AA75: Elementary Flows/emission/air | AB75: 6.81E-14 | AC75: kg | AE75: none | AK75: No | AM75: Ethylene oxide | AN75: Elementary Flows/emission/air | AO75: 5.33E-14 | AP75: kg | AR75: none | AX75: No
A76: Methane | B76: Elementary Flows/emission/air/troposphere/very high | C76: 28 | D76: kg CO2 eq/kg | F76: none | M76: Anthracene | N76: Elementary Flows/emission/water | O76: 6.50E-11 | P76: kg | R76: none | X76: No | Z76: Fluoranthene | AA76: Elementary Flows/emission/air | AB76: 9.49E-12 | AC76: kg | AE76: none | AK76: No | AM76: Fluoranthene | AN76: Elementary Flows/emission/air | AO76: 7.43E-12 | AP76: kg | AR76: none | AX76: No
A77: Methane, (difluoromethoxy)trifluoro- | B77: Elementary Flows/emission/air/troposphere/high | C77: 12400 | D77: kg CO2 eq/kg | F77: none | M77: Antimony | N77: Elementary Flows/emission/air | O77: 6.70E-09 | P77: kg | R77: none | X77: No | Z77: Fluorene | AA77: Elementary Flows/emission/air | AB77: 3.42E-11 | AC77: kg | AE77: none | AK77: No | AM77: Fluorene | AN77: Elementary Flows/emission/air | AO77: 2.67E-11 | AP77: kg | AR77: none | AX77: No
A78: Methyl bromide | B78: Elementary Flows/emission/air | C78: 2 | D78: kg CO2 eq/kg | F78: none | M78: Antimony compounds | N78: Elementary Flows/emission/water | O78: 2.20E-09 | P78: kg | R78: none | X78: No | Z78: Fluoride | AA78: Elementary Flows/emission/water | AB78: 4.28E-09 | AC78: kg | AE78: none | AK78: No | AM78: Fluoride | AN78: Elementary Flows/emission/water | AO78: 4.28E-09 | AP78: kg | AR78: none | AX78: No
A79: Methyl bromide | B79: Elementary Flows/emission/air/troposphere/urban | C79: 2 | D79: kg CO2 eq/kg | F79: none | M79: Aromatic hydrocarbons | N79: Elementary Flows/emission/air | O79: 1.20E-08 | P79: kg | R79: none | X79: No | Z79: Formaldehyde | AA79: Elementary Flows/emission/air | AB79: 2.15E-05 | AC79: kg | AE79: none | AK79: No | AM79: Formaldehyde | AN79: Elementary Flows/emission/air | AO79: 1.69E-05 | AP79: kg | AR79: none | AX79: No
A80: Methylene chloride | B80: Elementary Flows/emission/air | C80: 9 | D80: kg CO2 eq/kg | F80: none | M80: Arsenic | N80: Elementary Flows/emission/air | O80: 5.70E-10 | P80: kg | R80: none | X80: No | Z80: Glycol ethers | AA80: Elementary Flows/emission/air | AB80: 2.84e-11 | AC80: kg | AE80: none | AK80: No | AM80: Glycol ethers | AN80: Elementary Flows/emission/air | AO80: 2.23E-11 | AP80: kg | AR80: none | AX80: No
A81: Methylene chloride | B81: Elementary Flows/emission/air/troposphere/rural | C81: 9 | D81: kg CO2 eq/kg | F81: none | M81: Asbestos | N81: Elementary Flows/emission/air | O81: 7.50E-13 | P81: kg | R81: none | X81: No | Z81: Hexane | AA81: Elementary Flows/emission/air | AB81: 2.43E-06 | AC81: kg | AE81: none | AK81: No | AM81: Hexane | AN81: Elementary Flows/emission/air | AO81: 1.90E-06 | AP81: kg | AR81: none | AX81: No
A82: Methylene chloride | B82: Elementary Flows/emission/air/troposphere/urban | C82: 9 | D82: kg CO2 eq/kg | F82: none | M82: Barium | N82: Elementary Flows/emission/air | O82: 4.30E-12 | P82: kg | R82: none | X82: No | Z82: Hydrazine | AA82: Elementary Flows/emission/air | AB82: 4.97E-18 | AC82: kg | AE82: none | AK82: No | AM82: Hydrazine | AN82: Elementary Flows/emission/air | AO82: 3.89E-18 | AP82: kg | AR82: none | AX82: No
A83: Nitrogen trifluoride | B83: Elementary Flows/emission/air | C83: 16100 | D83: kg CO2 eq/kg | F83: none | M83: Barium compounds | N83: Elementary Flows/emission/air | O83: 1.90E-10 | P83: kg | R83: none | X83: No | Z83: Hydrochloric acid | AA83: Elementary Flows/emission/air | AB83: 6.82E-10 | AC83: kg | AE83: none | AK83: No | AM83: Hydrochloric acid | AN83: Elementary Flows/emission/air | AO83: 5.34E-10 | AP83: kg | AR83: none | AX83: No
A84: Nitrogen trifluoride | B84: Elementary Flows/emission/air/troposphere/urban | C84: 16100 | D84: kg CO2 eq/kg | F84: none | M84: Barium compounds | N84: Elementary Flows/emission/water | O84: 2.90E-09 | P84: kg | R84: none | X84: No | Z84: Hydrogen sulfide | AA84: Elementary Flows/emission/air | AB84: 5.45E-07 | AC84: kg | AE84: none | AK84: No | AM84: Hydrogen sulfide | AN84: Elementary Flows/emission/air | AO84: 4.27E-07 | AP84: kg | AR84: none | AX84: No
A85: Nitrous oxide | B85: Elementary Flows/emission/air/stratosphere | C85: 265 | D85: kg CO2 eq/kg | F85: none | M85: Benz[a]acridine | N85: Elementary Flows/emission/air | O85: 7.20E-14 | P85: kg | R85: none | X85: No | Z85: Indeno[1,2,3-cd]pyrene | AA85: Elementary Flows/emission/air | AB85: 2.59E-13 | AC85: kg | AE85: none | AK85: No | AM85: Indeno[1,2,3-cd]pyrene | AN85: Elementary Flows/emission/air | AO85: 2.03E-13 | AP85: kg | AR85: none | AX85: No
A86: Nitrous oxide | B86: Elementary Flows/emission/air | C86: 265 | D86: kg CO2 eq/kg | F86: none | M86: Benz[a]anthracene | N86: Elementary Flows/emission/water | O86: 3.10E-11 | P86: kg | R86: none | X86: No | Z86: Lead | AA86: Elementary Flows/emission/air | AB86: 4.96E-09 | AC86: kg | AE86: none | AK86: No | AM86: Lead | AN86: Elementary Flows/emission/air | AO86: 3.89E-09 | AP86: kg | AR86: none | AX86: No
A87: Nitrous oxide | B87: Elementary Flows/emission/air/troposphere/rural | C87: 265 | D87: kg CO2 eq/kg | F87: none | M87: Benzene | N87: Elementary Flows/emission/air | O87: 6.40E-07 | P87: kg | R87: none | X87: No | Z87: m-Xylene | AA87: Elementary Flows/emission/air | AB87: 4.81E-10 | AC87: kg | AE87: none | AK87: No | AM87: m-Xylene | AN87: Elementary Flows/emission/air | AO87: 3.76E-10 | AP87: kg | AR87: none | AX87: No
A88: Nitrous oxide | B88: Elementary Flows/emission/air/troposphere/urban | C88: 265 | D88: kg CO2 eq/kg | F88: none | M88: Benzidine | N88: Elementary Flows/emission/air | O88: 9.70E-11 | P88: kg | R88: none | X88: No | Z88: Manganese | AA88: Elementary Flows/emission/air | AB88: 6.06E-10 | AC88: kg | AE88: none | AK88: No | AM88: Manganese | AN88: Elementary Flows/emission/air | AO88: 4.74E-10 | AP88: kg | AR88: none | AX88: No
A89: Nitrous oxide | B89: Elementary Flows/emission/air/troposphere/very high | C89: 265 | D89: kg CO2 eq/kg | F89: none | M89: Benzo(b)fluoranthene | N89: Elementary Flows/emission/air | O89: 4.40E-12 | P89: kg | R89: none | X89: No | Z89: Manganese | AA89: Elementary Flows/emission/water | AB89: 3.45E-08 | AC89: kg | AE89: none | AK89: No | AM89: Manganese | AN89: Elementary Flows/emission/water | AO89: 3.45E-08 | AP89: kg | AR89: none | AX89: No
A90: Perfluoropentane | B90: Elementary Flows/emission/air | C90: 8550 | D90: kg CO2 eq/kg | F90: none | M90: Benzo[a]pyrene | N90: Elementary Flows/emission/air | O90: 1.10E-08 | P90: kg | R90: none | X90: No | Z90: Mercury | AA90: Elementary Flows/emission/air | AB90: 1.20E-10 | AC90: kg | AE90: none | AK90: No | AM90: Mercury | AN90: Elementary Flows/emission/air | AO90: 9.39E-11 | AP90: kg | AR90: none | AX90: No
A91: Sulfur hexafluoride | B91: Elementary Flows/emission/air | C91: 23500 | D91: kg CO2 eq/kg | F91: none | M91: Benzo[a]pyrene | N91: Elementary Flows/emission/water | O91: 3.10E-11 | P91: kg | R91: none | X91: No | Z91: Mercury | AA91: Elementary Flows/emission/water | AB91: 8.27E-14 | AC91: kg | AE91: none | AK91: No | AM91: Mercury | AN91: Elementary Flows/emission/water | AO91: 8.27E-14 | AP91: kg | AR91: none | AX91: No
A92: Sulfur hexafluoride | B92: Elementary Flows/emission/air/troposphere/rural | C92: 23500 | D92: kg CO2 eq/kg | F92: none | M92: Benzo[e]pyrene | N92: Elementary Flows/emission/air | O92: 5.00E-14 | P92: kg | R92: none | X92: No | Z92: Methanol | AA92: Elementary Flows/emission/air | AB92: 2.55E-06 | AC92: kg | AE92: none | AK92: No | AM92: Methanol | AN92: Elementary Flows/emission/air | AO92: 1.99E-06 | AP92: kg | AR92: none | AX92: No
A93: Sulfur hexafluoride | B93: Elementary Flows/emission/air/troposphere/urban | C93: 23500 | D93: kg CO2 eq/kg | F93: none | M93: Benzo[ghi]perylene | N93: Elementary Flows/emission/air | O93: 1.60E-09 | P93: kg | R93: none | X93: No | Z93: Methyl isobutyl ketone | AA93: Elementary Flows/emission/air | AB93: 3.17E-09 | AC93: kg | AE93: none | AK93: No | AM93: Methyl isobutyl ketone | AN93: Elementary Flows/emission/air | AO93: 2.48E-09 | AP93: kg | AR93: none | AX93: No
A94: Trifluoro(fluoromethoxy)methane | B94: Elementary Flows/emission/air | C94: 222 | D94: kg CO2 eq/kg | F94: none | M94: Benzo[ghi]perylene | N94: Elementary Flows/emission/water | O94: 8.80E-11 | P94: kg | R94: none | X94: No | Z94: Methyl tert-butyl ether | AA94: Elementary Flows/emission/air | AB94: 1.07e-13 | AC94: kg | AE94: none | AK94: No | AM94: Methyl tert-butyl ether | AN94: Elementary Flows/emission/air | AO94: 8.38E-14 | AP94: kg | AR94: none | AX94: No
F95: none | M95: Benzo[k]fluoranthene | N95: Elementary Flows/emission/air | O95: 1.10E-12 | P95: kg | R95: none | X95: No | Z95: Naphthalene | AA95: Elementary Flows/emission/air | AB95: 6.90E-08 | AC95: kg | AE95: none | AK95: No | AM95: Naphthalene | AN95: Elementary Flows/emission/air | AO95: 5.40E-08 | AP95: kg | AR95: none | AX95: No
F96: none | M96: Benzo[k]fluoranthene | N96: Elementary Flows/emission/water | O96: 7.60E-13 | P96: kg | R96: none | X96: No | Z96: Nickel | AA96: Elementary Flows/emission/air | AB96: 5.45E-09 | AC96: kg | AE96: none | AK96: No | AM96: Nickel | AN96: Elementary Flows/emission/air | AO96: 4.27E-09 | AP96: kg | AR96: none | AX96: No
F97: none | M97: Benzofluoranthene | N97: Elementary Flows/emission/air | O97: 5.10E-12 | P97: kg | R97: none | X97: No | Z97: Nitrogen oxides | AA97: Elementary Flows/emission/air | AB97: 5.76E-04 | AC97: kg | AE97: none | AK97: No | AM97: Nitrogen oxides | AN97: Elementary Flows/emission/air | AO97: 4.51E-04 | AP97: kg | AR97: none | AX97: No
F98: none | M98: Beryllium | N98: Elementary Flows/emission/air | O98: 5.90E-11 | P98: kg | R98: none | X98: No | Z98: o-Xylene | AA98: Elementary Flows/emission/air | AB98: 1.00E-10 | AC98: kg | AE98: none | AK98: No | AM98: o-Xylene | AN98: Elementary Flows/emission/air | AO98: 7.84E-11 | AP98: kg | AR98: none | AX98: No
F99: none | M99: Biological Oxygen Demand | N99: Elementary Flows/emission/water | O99: 1.10E-05 | P99: kg | R99: none | X99: No | Z99: Oils, unspecified | AA99: Elementary Flows/emission/water | AB99: 3.34E-08 | AC99: kg | AE99: none | AK99: No | AM99: Oils, unspecified | AN99: Elementary Flows/emission/water | AO99: 3.34E-08 | AP99: kg | AR99: none | AX99: No
F100: none | M100: Biphenyl | N100: Elementary Flows/emission/air | O100: 9.40E-09 | P100: kg | R100: none | X100: No | Z100: Particulate matter, > 2.5μm and ≤ 10μm | AA100: Elementary Flows/emission/air | AB100: 4.11E-07 | AC100: kg | AE100: none | AK100: No | AM100: Particulate matter, > 2.5μm and ≤ 10μm | AN100: Elementary Flows/emission/air | AO100: 3.22E-07 | AP100: kg | AR100: none | AX100: No
F101: none | M101: Bis(2-chloroethyl) ether | N101: Elementary Flows/emission/air | O101: 9.10E-12 | P101: kg | R101: none | X101: No | Z101: Particulate matter, ≤ 2.5μm | AA101: Elementary Flows/emission/air | AB101: 1.72E-05 | AC101: kg | AE101: none | AK101: No | AM101: Particulate matter, ≤ 2.5μm | AN101: Elementary Flows/emission/air | AO101: 1.35E-05 | AP101: kg | AR101: none | AX101: No
F102: none | K102: Mass (0.0372 kg/kg output) used for allocation. | M102: Bitumen, at refinery | N102: Technosphere Flows/31-33: Manufacturing/3241: Petroleum and Coal Products Manufacturing | O102: 0.03717479547 | P102: kg | R102: none | W102: Mass (0.0372 kg/kg output) used for allocation. | X102: No | Z102: Perylene | AA102: Elementary Flows/emission/air | AB102: 1.94E-14 | AC102: kg | AE102: none | AK102: No | AM102: Perylene | AN102: Elementary Flows/emission/air | AO102: 1.52E-14 | AP102: kg | AR102: none | AX102: No
F103: none | M103: Cadmium | N103: Elementary Flows/emission/air | O103: 7.70E-10 | P103: kg | R103: none | X103: No | Z103: Phenanthrene | AA103: Elementary Flows/emission/air | AB103: 6.66E-11 | AC103: kg | AE103: none | AK103: No | AM103: Phenanthrene | AN103: Elementary Flows/emission/air | AO103: 5.21E-11 | AP103: kg | AR103: none | AX103: No
F104: none | M104: Cadmium compounds | N104: Elementary Flows/emission/water | O104: 1.10E-12 | P104: kg | R104: none | X104: No | Z104: Phenol | AA104: Elementary Flows/emission/air | AB104: 5.78E-09 | AC104: kg | AE104: none | AK104: No | AM104: Phenol | AN104: Elementary Flows/emission/air | AO104: 4.53E-09 | AP104: kg | AR104: none | AX104: No
F105: none | M105: Carbon dioxide | N105: Elementary Flows/emission/air | O105: 0.22 | P105: kg | R105: none | X105: Yes | Z105: Phosphorus | AA105: Elementary Flows/emission/air | AB105: 1.12E-09 | AC105: kg | AE105: none | AK105: No | AM105: Phosphorus | AN105: Elementary Flows/emission/air | AO105: 8.74E-10 | AP105: kg | AR105: none | AX105: No
F106: none | M106: Carbon disulfide | N106: Elementary Flows/emission/air | O106: 4.00E-08 | P106: kg | R106: none | X106: No | Z106: Propylene oxide | AA106: Elementary Flows/emission/air | AB106: 4.08E-10 | AC106: kg | AE106: none | AK106: No | AM106: Propylene oxide | AN106: Elementary Flows/emission/air | AO106: 3.19E-10 | AP106: kg | AR106: none | AX106: No
F107: none | M107: Carbon disulfide | N107: Elementary Flows/emission/water | O107: 1.10E-09 | P107: kg | R107: none | X107: No | Z107: Pyrene | AA107: Elementary Flows/emission/air | AB107: 9.15E-12 | AC107: kg | AE107: none | AK107: No | AM107: Pyrene | AN107: Elementary Flows/emission/air | AO107: 7.16E-12 | AP107: kg | AR107: none | AX107: No
F108: none | M108: Carbon monoxide | N108: Elementary Flows/emission/air | O108: 6.10E-05 | P108: kg | R108: none | X108: No | Z108: Radium-226 | AA108: Elementary Flows/emission/water | AB108: 1.46E-16 | AC108: kg | AE108: none | AK108: No | AM108: Radium-226 | AN108: Elementary Flows/emission/water | AO108: 1.46E-16 | AP108: kg | AR108: none | AX108: No
F109: none | M109: Carbon tetrachloride | N109: Elementary Flows/emission/air | O109: 1.36E-12 | P109: kg | R109: none | X109: Yes | Z109: Selenium | AA109: Elementary Flows/emission/air | AB109: 2.21E-10 | AC109: kg | AE109: none | AK109: No | AM109: Selenium | AN109: Elementary Flows/emission/air | AO109: 1.73E-10 | AP109: kg | AR109: none | AX109: No
F110: none | M110: Carbonyl sulfide | N110: Elementary Flows/emission/air | O110: 2.00E-07 | P110: kg | R110: none | X110: No | Z110: Styrene | AA110: Elementary Flows/emission/air | AB110: 1.52E-08 | AC110: kg | AE110: none | AK110: No | AM110: Styrene | AN110: Elementary Flows/emission/air | AO110: 1.19E-08 | AP110: kg | AR110: none | AX110: No
F111: none | M111: Catechol | N111: Elementary Flows/emission/air | O111: 1.20E-10 | P111: kg | R111: none | X111: No | Z111: Sulfate | AA111: Elementary Flows/emission/water | AB111: 1.02E-05 | AC111: kg | AE111: none | AK111: No | AM111: Sulfate | AN111: Elementary Flows/emission/water | AO111: 1.02E-05 | AP111: kg | AR111: none | AX111: No
F112: none | M112: CFC-13 | N112: Elementary Flows/emission/air | O112: 2.18E-11 | P112: kg | R112: none | X112: Yes | Z112: Sulfide | AA112: Elementary Flows/emission/water | AB112: 7.22E-08 | AC112: kg | AE112: none | AK112: No | AM112: Sulfide | AN112: Elementary Flows/emission/water | AO112: 7.22E-08 | AP112: kg | AR112: none | AX112: No
F113: none | M113: Chemical Oxygen Demand | N113: Elementary Flows/emission/water | O113: 2.70E-05 | P113: kg | R113: none | X113: No | Z113: Sulfur dioxide | AA113: Elementary Flows/emission/air | AB113: 1.04E-04 | AC113: kg | AE113: none | AK113: No | AM113: Sulfur dioxide | AN113: Elementary Flows/emission/air | AO113: 8.17E-05 | AP113: kg | AR113: none | AX113: No
F114: none | M114: Chlorine | N114: Elementary Flows/emission/air | O114: 3.90E-08 | P114: kg | R114: none | X114: No | Z114: Tetrachloroethylene | AA114: Elementary Flows/emission/air | AB114: 3.20E-09 | AC114: kg | AE114: none | AK114: No | AM114: Tetrachloroethylene | AN114: Elementary Flows/emission/air | AO114: 2.51E-09 | AP114: kg | AR114: none | AX114: No
F115: none | M115: Chlorine | N115: Elementary Flows/emission/water | O115: 2.50E-10 | P115: kg | R115: none | X115: No | Z115: Toluene | AA115: Elementary Flows/emission/air | AB115: 1.93E-05 | AC115: kg | AE115: none | AK115: No | AM115: Toluene | AN115: Elementary Flows/emission/air | AO115: 1.51E-05 | AP115: kg | AR115: none | AX115: No
F116: none | M116: Chlorobenzene | N116: Elementary Flows/emission/air | O116: 3.50E-10 | P116: kg | R116: none | X116: No | Z116: Toluene | AA116: Elementary Flows/emission/water | AB116: 5.16E-12 | AC116: kg | AE116: none | AK116: No | AM116: Toluene | AN116: Elementary Flows/emission/water | AO116: 5.16E-12 | AP116: kg | AR116: none | AX116: No
F117: none | M117: Chloroethane | N117: Elementary Flows/emission/air | O117: 1.8E-13+3.8E-12 | P117: kg | R117: none | X117: No | Z117: Total dissolved solids | AA117: Elementary Flows/emission/water | AB117: 2.70E-05 | AC117: kg | AE117: none | AK117: No | AM117: Total dissolved solids | AN117: Elementary Flows/emission/water | AO117: 2.70E-05 | AP117: kg | AR117: none | AX117: No
F118: none | M118: Chlorofluorocarbons | N118: Elementary Flows/emission/air | O118: 4.40E-10 | P118: kg | R118: none | X118: Yes | Z118: Total suspended solids | AA118: Elementary Flows/emission/water | AB118: 6.69E-06 | AC118: kg | AE118: none | AK118: No | AM118: Total suspended solids | AN118: Elementary Flows/emission/water | AO118: 6.69E-06 | AP118: kg | AR118: none | AX118: No
F119: none | M119: Chloroform | N119: Elementary Flows/emission/air | O119: 5.10E-09 | P119: kg | R119: none | X119: Yes | Z119: Trichloroethylene | AA119: Elementary Flows/emission/air | AB119: 6.08E-11 | AC119: kg | AE119: none | AK119: No | AM119: Trichloroethylene | AN119: Elementary Flows/emission/air | AO119: 4.76E-11 | AP119: kg | AR119: none | AX119: No
F120: none | K120: Proxy for Methane, dichloro-, HCC-30 | M120: Chloromethane | N120: Elementary Flows/emission/air | O120: 1.80E-08 | P120: kg | R120: none | W120: Proxy for Methane, dichloro-, HCC-30 | X120: Yes | Z120: Volatile organic compounds | AA120: Elementary Flows/emission/air | AB120: 0.00559 | AC120: kg | AE120: none | AK120: No | AM120: Volatile organic compounds | AN120: Elementary Flows/emission/air | AO120: 4.37E-03 | AP120: kg | AR120: none | AX120: No
F121: none | M121: Chromium | N121: Elementary Flows/emission/water | O121: 3.50E-10 | P121: kg | R121: none | X121: No | Z121: Xylene | AA121: Elementary Flows/emission/air | AB121: 4.88E-06 | AC121: kg | AE121: none | AK121: No | AM121: Xylene | AN121: Elementary Flows/emission/air | AO121: 3.82E-06 | AP121: kg | AR121: none | AX121: No
F122: none | M122: Chromium compounds | N122: Elementary Flows/emission/water | O122: 2.50E-10 | P122: kg | R122: none | X122: No | Z122: Xylene | AA122: Elementary Flows/emission/water | AB122: 6.39e-12 | AC122: kg | AE122: none | AK122: No | AM122: Xylene | AN122: Elementary Flows/emission/water | AO122: 6.39E-12 | AP122: kg | AR122: none | AX122: No
F123: none | M123: Chromium(III) | N123: Elementary Flows/emission/air | O123: 2.80E-09 | P123: kg | R123: none | X123: No | Z123: Zinc | AA123: Elementary Flows/emission/water | AB123: 1.90E-11 | AC123: kg | AE123: none | AK123: No | AM123: Zinc | AN123: Elementary Flows/emission/water | AO123: 1.90E-11 | AP123: kg | AR123: none | AX123: No
F124: none | M124: Chromium(III) | N124: Elementary Flows/emission/water | O124: 2.80E-10 | P124: kg | R124: none | X124: No | AK124: No | AX124: No
F125: none | M125: Chromium(VI) | N125: Elementary Flows/emission/air | O125: 4.80E-10 | P125: kg | R125: none | X125: No | AK125: No | AX125: No
F126: none | M126: Chromium(VI) | N126: Elementary Flows/emission/water | O126: 7.60E-10 | P126: kg | R126: none | X126: No | AK126: No | AX126: No
F127: none | M127: Chrysene | N127: Elementary Flows/emission/air | O127: 9.00E-11 | P127: kg | R127: none | X127: No | AK127: No | AX127: No
F128: none | M128: Chrysene | N128: Elementary Flows/emission/water | O128: 1.80E-11 | P128: kg | R128: none | X128: No | AK128: No | AX128: No
F129: none | M129: Cobalt | N129: Elementary Flows/emission/air | O129: 6.10E-10 | P129: kg | R129: none | X129: No | AK129: No | AX129: No
F130: none | M130: Cobalt compounds | N130: Elementary Flows/emission/water | O130: 6.70E-10 | P130: kg | R130: none | X130: No | AK130: No | AX130: No
F131: none | M131: Copper | N131: Elementary Flows/emission/air | O131: 2.30E-10 | P131: kg | R131: none | X131: No | AK131: No | AX131: No
F132: none | M132: Copper | N132: Elementary Flows/emission/water | O132: 1.40E-10 | P132: kg | R132: none | X132: No | AK132: No | AX132: No
F133: none | M133: Copper compounds | N133: Elementary Flows/emission/air | O133: 1.20E-09 | P133: kg | R133: none | X133: =IF(COUNTIF($A$4:$A$288,M133)>0,"Yes","No") -> No | AK133: =IF(COUNTIF($A$4:$A$288,Z133)>0,"Yes","No") -> No | AX133: =IF(COUNTIF($A$4:$A$288,AM133)>0,"Yes","No") -> No
F134: none | M134: Copper compounds | N134: Elementary Flows/emission/water | O134: 3.90E-10 | P134: kg | R134: none | X134: No | AK134: No | AX134: No
F135: none | M135: Cresol | N135: Elementary Flows/emission/air | O135: 2.50E-08 | P135: kg | R135: none | X135: No | AK135: No | AX135: No
F136: none | M136: Cresol | N136: Elementary Flows/emission/water | O136: 1.00E-09 | P136: kg | R136: none | X136: No | AK136: No | AX136: No
F137: none | M137: Cumene | N137: Elementary Flows/emission/air | O137: 1.10E-07 | P137: kg | R137: none | X137: No | AK137: No | AX137: No
F138: none | M138: Cumene | N138: Elementary Flows/emission/water | O138: 4.10E-10 | P138: kg | R138: none | X138: No | AK138: No | AX138: No
F139: none | M139: Cyanamide | N139: Elementary Flows/emission/air | O139: 7.00E-07 | P139: kg | R139: none | X139: No | AK139: No | AX139: No
F140: none | M140: Cyanamide | N140: Elementary Flows/emission/water | O140: 4.30E-10 | P140: kg | R140: none | X140: No | AK140: No | AX140: No
F141: none | M141: Cyclohexane | N141: Elementary Flows/emission/air | O141: 2.80E-07 | P141: kg | R141: none | X141: No | AK141: No | AX141: No
F142: none | M142: Cyclohexane | N142: Elementary Flows/emission/water | O142: 3.70E-10 | P142: kg | R142: none | X142: No | AK142: No | AX142: No
F143: none | M143: Dibenz[a,h]anthracene | N143: Elementary Flows/emission/air | O143: 1.20E-11 | P143: kg | R143: none | X143: No | AK143: No | AX143: No
F144: none | M144: Dibenz[a,h]anthracene | N144: Elementary Flows/emission/water | O144: 1.80E-11 | P144: kg | R144: none | X144: No | AK144: No | AX144: No
F145: none | M145: Dibenzofuran | N145: Elementary Flows/emission/air | O145: 2.80E-11 | P145: kg | R145: none | X145: No | AK145: No | AX145: No
F146: none | K146: Proxy for Methane, bromo-, Halon 1001 | M146: Dibromomethane | N146: Elementary Flows/emission/air | O146: 3.70E-09 | P146: kg | R146: none | W146: Proxy for Methane, bromo-, Halon 1001 | X146: Yes | AK146: No | AX146: No
F147: none | M147: Dibutyl phthalate | N147: Elementary Flows/emission/air | O147: 2.60E-10 | P147: kg | R147: none | X147: No | AK147: No | AX147: No
F148: none | K148: Proxy for Benzene, 1,4-dichloro- | M148: Dichlorobenzene | N148: Elementary Flows/emission/air | O148: 2.40E-11 | P148: kg | R148: none | W148: Proxy for Benzene, 1,4-dichloro- | X148: No | AK148: No | AX148: No
F149: none | M149: Dicyclopentadiene | N149: Elementary Flows/emission/air | O149: 1.70E-09 | P149: kg | R149: none | X149: No | AK149: No | AX149: No
F150: none | K150: Mass (0.2188 kg/kg output) used for allocation. Conversion to volume used 1.153 L/kg (from a 7.24lb/gal as density factor). | M150: Diesel, at refinery | N150: Technosphere Flows/31-33: Manufacturing/3241: Petroleum and Coal Products Manufacturing | O150: 0.2523452775 | P150: l | R150: none | W150: Mass (0.2188 kg/kg output) used for allocation. Conversion to volume used 1.153 L/kg (from a 7.24lb/gal as density factor). | X150: No | AK150: No | AX150: No
F151: none | M151: Diethanolamine | N151: Elementary Flows/emission/air | O151: 5.50E-08 | P151: kg | R151: none | X151: No | AK151: No | AX151: No
F152: none | M152: Diethanolamine | N152: Elementary Flows/emission/water | O152: 5.80E-10 | P152: kg | R152: none | X152: No | AK152: No | AX152: No
F153: none | M153: Diisobutyl ketone | N153: Elementary Flows/emission/air | O153: 4.00E-09 | P153: kg | R153: none | X153: No | AK153: No | AX153: No
F154: none | M154: Disposal, solid waste, process, to sanitary landfill | N154: Technosphere Flows/CUTOFF Flows | O154: 0.00517 | P154: kg | R154: none | X154: No | AK154: No | AX154: No
F155: none | M155: Epichlorohydrin | N155: Elementary Flows/emission/air | O155: 6.50E-09 | P155: kg | R155: none | X155: No | AK155: No | AX155: No
F156: none | M156: Ethane, 1,2-dibromo-1,1,2-trifluoro- | N156: Elementary Flows/emission/air | O156: 2.70E-09 | P156: kg | R156: none | X156: No | AK156: No | AX156: No
F157: none | M157: Ethanol, 2-(2-propoxyethoxy)- | N157: Elementary Flows/emission/air | O157: 4.50E-11 | P157: kg | R157: none | X157: No | AK157: No | AX157: No
F158: none | M158: Ethylbenzene | N158: Elementary Flows/emission/air | O158: 2.00E-07 | P158: kg | R158: none | X158: No | AK158: No | AX158: No
F159: none | M159: Ethylbenzene | N159: Elementary Flows/emission/water | O159: 9.80E-10 | P159: kg | R159: none | X159: No | AK159: No | AX159: No
F160: none | M160: Ethylene | N160: Elementary Flows/emission/air | O160: 6.10E-07 | P160: kg | R160: none | X160: No | AK160: No | AX160: No
F161: none | M161: Ethylene | N161: Elementary Flows/emission/water | O161: 3.50E-10 | P161: kg | R161: none | X161: No | AK161: No | AX161: No
F162: none | M162: Ethylene dibromide | N162: Elementary Flows/emission/air | O162: 4.27E-12 | P162: kg | R162: none | X162: No | AK162: No | AX162: No
F163: none | M163: Ethylene glycol | N163: Elementary Flows/emission/air | O163: 1.50E-08 | P163: kg | R163: none | X163: No | AK163: No | AX163: No
F164: none | M164: Ethylene glycol | N164: Elementary Flows/emission/water | O164: 2.50E-08 | P164: kg | R164: none | X164: No | AK164: No | AX164: No
F165: none | M165: Fluoranthene | N165: Elementary Flows/emission/air | O165: 6.90E-10 | P165: kg | R165: none | X165: No | AK165: No | AX165: No
F166: none | M166: Fluorene | N166: Elementary Flows/emission/air | O166: 1.20E-11 | P166: kg | R166: none | X166: No | AK166: No | AX166: No
F167: none | M167: Fluorene | N167: Elementary Flows/emission/water | O167: 7.60E-13 | P167: kg | R167: none | X167: No | AK167: No | AX167: No
F168: none | M168: Formaldehyde | N168: Elementary Flows/emission/air | O168: 3.50E-07 | P168: kg | R168: none | X168: No | AK168: No | AX168: No
F169: none | K169: Mass (0.4213 kg/kg output) used for allocation. Conversion to volume used 1.353 L/kg (from 6.47 lb/gal as density factor). | M169: Gasoline, at refinery | N169: Technosphere Flows/31-33: Manufacturing/3241: Petroleum and Coal Products Manufacturing | O169: 0.5700866709 | P169: l | R169: none | W169: Mass (0.4213 kg/kg output) used for allocation. Conversion to volume used 1.353 L/kg (from 6.47 lb/gal as density factor). | X169: No | AK169: No | AX169: No
F170: none | M170: Glycidol | N170: Elementary Flows/emission/air | O170: 3.50E-11 | P170: kg | R170: none | X170: No | AK170: No | AX170: No
F171: none | M171: Glycol ethers | N171: Elementary Flows/emission/air | O171: 1.10E-08 | P171: kg | R171: none | X171: No | AK171: No | AX171: No
F172: none | M172: HCFC-22 | N172: Elementary Flows/emission/air | O172: 1.10E-08 | P172: kg | R172: none | X172: Yes | AK172: No | AX172: No
F173: none | M173: Hexachlorobenzene | N173: Elementary Flows/emission/air | O173: 9.10E-12 | P173: kg | R173: none | X173: No | AK173: No | AX173: No
F174: none | M174: Hexachlorobutadiene | N174: Elementary Flows/emission/air | O174: 9.10E-12 | P174: kg | R174: none | X174: No | AK174: No | AX174: No
F175: none | M175: Hexachlorocyclopentadiene | N175: Elementary Flows/emission/air | O175: 9.10E-12 | P175: kg | R175: none | X175: No | AK175: No | AX175: No
F176: none | M176: Hexachloroethane | N176: Elementary Flows/emission/air | O176: 9.10E-12 | P176: kg | R176: none | X176: No | AK176: No | AX176: No
F177: none | M177: Hexane | N177: Elementary Flows/emission/air | O177: 1.30E-06 | P177: kg | R177: none | X177: No | AK177: No | AX177: No
F178: none | M178: Hexane | N178: Elementary Flows/emission/water | O178: 7.40E-10 | P178: kg | R178: none | X178: No | AK178: No | AX178: No
F179: none | M179: Hydrazine | N179: Elementary Flows/emission/air | O179: 4.30E-13 | P179: kg | R179: none | X179: No | AK179: No | AX179: No
F180: none | M180: Hydrochloric acid | N180: Elementary Flows/emission/air | O180: 2.40E-07 | P180: kg | R180: none | X180: No | AK180: No | AX180: No
F181: none | M181: Hydrofluoric acid | N181: Elementary Flows/emission/air | O181: 2.80E-08 | P181: kg | R181: none | X181: No | AK181: No | AX181: No
F182: none | M182: Hydrofluoric acid | N182: Elementary Flows/emission/water | O182: 6.00E-12 | P182: kg | R182: none | X182: No | AK182: No | AX182: No
F183: none | M183: Hydrogen cyanide | N183: Elementary Flows/emission/air | O183: 2.20E-06 | P183: kg | R183: none | X183: No | AK183: No | AX183: No
F184: none | M184: Hydrogen sulfide | N184: Elementary Flows/emission/air | O184: 7.30E-07 | P184: kg | R184: none | X184: No | AK184: No | AX184: No
F185: none | M185: Hydrogen sulfide | N185: Elementary Flows/emission/water | O185: 1.30E-08 | P185: kg | R185: none | X185: No | AK185: No | AX185: No
F186: none | M186: Indeno[1,2,3-cd]pyrene | N186: Elementary Flows/emission/air | O186: 1.50E-11 | P186: kg | R186: none | X186: No | AK186: No | AX186: No
F187: none | M187: Isophorone | N187: Elementary Flows/emission/air | O187: 1.30E-11 | P187: kg | R187: none | X187: No | AK187: No | AX187: No
F188: none | M188: Isoprene | N188: Elementary Flows/emission/air | O188: 4.80E-09 | P188: kg | R188: none | X188: No | AK188: No | AX188: No
F189: none | M189: Isoprene | N189: Elementary Flows/emission/water | O189: 5.40E-10 | P189: kg | R189: none | X189: No | AK189: No | AX189: No
F190: none | K190: Mass (0.0910 kg/kg output) used for allocation. Conversion to volume used 1.236 L/kg (from 6.75 lb/gal as density factor). | M190: Kerosene, at refinery - RNA | N190: Technosphere Flows/31-33: Manufacturing/3241: Petroleum and Coal Products Manufacturing | O190: 0.1124582215 | P190: l | R190: none | W190: Mass (0.0910 kg/kg output) used for allocation. Conversion to volume used 1.236 L/kg (from 6.75 lb/gal as density factor). | X190: No | AK190: No | AX190: No
F191: none | M191: Lead | N191: Elementary Flows/emission/air | O191: 2.30E-09 | P191: kg | R191: none | X191: No | AK191: No | AX191: No
F192: none | M192: Lead | N192: Elementary Flows/emission/water | O192: 1.60E-11 | P192: kg | R192: none | X192: No | AK192: No | AX192: No
F193: none | M193: Lead compounds | N193: Elementary Flows/emission/water | O193: 1.10E-09 | P193: kg | R193: none | X193: No | AK193: No | AX193: No
F194: none | K194: 100% propane. Mass (0.0266 kg/kg output) used for allocation. Conversion to volume used 1.84 L/kg (from a 4.52 lb/gal as density factor). | M194: Liquefied petroleum gas, at refinery - RNA | N194: Technosphere Flows/31-33: Manufacturing/3241: Petroleum and Coal Products Manufacturing | O194: 0.04908317754 | P194: l | R194: none | W194: 100% propane. Mass (0.0266 kg/kg output) used for allocation. Conversion to volume used 1.84 L/kg (from a 4.52 lb/gal as density factor). | X194: No | AK194: No | AX194: No
F195: none | M195: m-Cresol | N195: Elementary Flows/emission/air | O195: 3.80E-11 | P195: kg | R195: none | X195: No | AK195: No | AX195: No
F196: none | M196: m-Xylene | N196: Elementary Flows/emission/water | O196: 2.10E-11 | P196: kg | R196: none | X196: No | AK196: No | AX196: No
F197: none | M197: Manganese | N197: Elementary Flows/emission/air | O197: 5.40E-09 | P197: kg | R197: none | X197: =IF(COUNTIF($A$4:$A$288,M197)>0,"Yes","No") -> No | AK197: =IF(COUNTIF($A$4:$A$288,Z197)>0,"Yes","No") -> No | AX197: =IF(COUNTIF($A$4:$A$288,AM197)>0,"Yes","No") -> No
F198: none | M198: Manganese | N198: Elementary Flows/emission/water | O198: 4.10E-09 | P198: kg | R198: none | X198: No | AK198: No | AX198: No
F199: none | M199: Manganese compounds | N199: Elementary Flows/emission/water | O199: 9.30E-10 | P199: kg | R199: none | X199: No | AK199: No | AX199: No
F200: none | M200: Mercury | N200: Elementary Flows/emission/air | O200: 7.90E-10 | P200: kg | R200: none | X200: No | AK200: No | AX200: No
F201: none | M201: Mercury | N201: Elementary Flows/emission/water | O201: 1.40E-12 | P201: kg | R201: none | X201: No | AK201: No | AX201: No
... 87 more rows

Sheet Scoring Example (USLCI)
A1: Example Process and Flow Scoring According to Data Quality Assessment Method
C3: Cell Type Key
C4: Text input by user
C5: Calculated Cells (DO NOT EDIT)
C6: User inputs linked to aggregation matrix
C7: Calculated cells linked to aggregation matrix (DO NOT EDIT)
C9: Process Notes 1) openLCA setup; USLCI flows; ISO21930-LCIA-US LCIA method
C10: 2) calculate product system for 'Petroleum refining, at refinery'
C11: 3) check results in the 'Contribution tree' tab
C12: --- a) this is to determine weights for datasets with multiple processes
C13: 4) the following providers for flows into 'Petroleum refining, at refinery' need evaluation:
C14: --- a) Crude oil, production mixture, at extraction - US (42.95% of total)
C15: ----- i) This is the only inflow with >10% of total impacts
C16: 5) Evaluate Flows
B18: 1) Enter the use case values describing the scope of the modeling exercise where the model(s) for evaluation are being applied | I18: https://catalog.data.gov/dataset/characterization-factors-for-construction-material-epd-indicators-iso21930-lcia-us-v0-1
C20: USE CASE DATA QUALITY ASSESSMENT INPUTS
C21: Data Quality Indicator (DQI) | D21: Use Case Value
C22: Year of Data Use | D22: 2024
C23: Geographical Resolution | D23: U.S.
C24: Technology: Process Design | D24: U.S. Petroleum Refining
C25: Technology: Operating Conditions | D25: U.S. Petroleum Refining
C26: Technology: Material Quality/Type | D26: U.S. Refining products: Diesel (process is based on diesel's functional unit), Bitumen, Gasoline, Kerosene, LPG, Petroleum Coke, Petroleum refining coproduct, Refinery gas, Residual Fuel Oil.
C27: Technology: Process Scale | D27: Industrial Scale Petroleum Refining
B29: 2) Enter results from the cradle-to-gate evaluation for the model that is being evaluated
C30: LCIA method to assess GHG contribution available at: https://catalog.data.gov/dataset/characterization-factors-for-construction-material-epd-indicators-iso21930-lcia-us-v0-1
C32: UPSTREAM PROCESS INCLUSION EVALUATION
C33: Contribution [%] | D33: Process | E33: Exchange Value | F33: Flow Unit | G33: Cradle-to-Gate Impact (kg CO2 eq) | H33: Include? (Y/N)
C34: 100.00 | D34: Petroleum refining, at refinery - US | E34: Reference flow value | F34: m3 | G34: 0.048471117 | H34: =IF(ISNUMBER(C34),IF(C34>=10,"YES","NO"),"-") -> YES
C35: 42.90 | D35: Crude oil, production mixture, at extraction - US | E35: input/output flow value | F35: kg | G35: 0 | H35: YES
C36: 20.10 | D36: Crude oil, on-shore import, at extraction - US | E36: input/output flow value | F36: kg | G36: 0.03522888691 | H36: YES
C37: 17.50 | D37: Crude oil, on-shore domestic, at extraction - US | E37: input/output flow value | F37: kg | G37: 0.03030321029 | H37: YES
C38: 3.15 | D38: Crude oil, off-shore import, at extraction - US | E38: input/output flow value | F38: kg | G38: 0.005330211971 | H38: NO
C39: 2.25 | D39: Crude oil, off-shore domestic, at extraction - US | E39: input/output flow value | F39: kg | G39: 0.00372592332 | H39: NO
C40: 6.60 | D40: Transport, ocean freighter, diesel powered - US | E40: input/output flow value | F40: t*km | G40: 0.009771387336 | H40: NO
C41: 6.35 | D41: Ethanol, 85%, at blending terminal, 2022 - RNA | E41: input/output flow value | F41: kg | G41: 0 | H41: NO
C42: 6.08 | D42: Natural gas, combusted in industrial boiler - RNA | E42: input/output flow value | F42: m3 | G42: 0.009011181138 | H42: NO
C43: 5.14 | D43: Hydrogen, liquid, synthesis gas, at plant - RNA | E43: input/output flow value | F43: kg | G43: 0.008034336 | H43: NO
C44: 3.50 | D44: Electricity, at Grid, US, 2010 - RNA | E44: input/output flow value | F44: MJ | G44: 0 | H44: NO
C45: 1.84 | D45: Petroleum refining, at refinery - US | E45: input/output flow value | F45: m3 | G45: 0.0009098877235 | H45: NO
C46: 0.56 | D46: Transport, pipeline, unspecified petroleum products - RNA | E46: input/output flow value | F46: t*km | G46: 0 | H46: NO
C47: 0.41 | D47: Transport, train, diesel powered - RNA | E47: input/output flow value | F47: t*km | G47: 0.0006059697567 | H47: NO
C48: 0.22 | D48: Natural gas, production mixture, at processing - US | E48: input/output flow value | F48: kg | G48: 0 | H48: NO
C49: 0.07 | D49: Transport, barge, diesel powered - RNA | E49: input/output flow value | F49: t*km | G49: 9.860759751e-05 | H49: =IF(ISNUMBER(C48),IF(C48>=10,"YES","NO"),"-") -> NO
C50: 0.06 | D50: Bituminous coal, combusted in industrial boiler - RNA | E50: input/output flow value | F50: kg | G50: 0.0001077057397 | H50: =IF(ISNUMBER(C48),IF(C48>=10,"YES","NO"),"-") -> NO
B52: 3) Enter results of the process level data quality evaluation
C54: Process Name | D54: Unit Process: Petroleum refining, at refinery - US
C55: Process Link | D55: https://www.lcacommons.gov/lca-collaboration/National_Renewable_Energy_Laboratory/USLCI_Database_Public/dataset/PROCESS/0aaf1e13-5d80-37f9-b7bb-81a6b8965c71
C57: Process Data Quality Evaluation | F57: Data Attributes
C58: Reviewed | D58: Flow Completeness | E58: Range Data Completeness | F58: Reproducibility | G58: Free-to-Use and Publicly Accessible | H58: Maintained | I58: Interoperable
B59: ='Scoring Example (USLCI)'!C35-B84-B109 -> 42.90 | C59: PROCESS DATA QUALITY INFORMATION ~ Enter data from the process that will be used to generate a 1-5 score ~
C60: Metadata Data Quality Entry indicates: "Documented review by an internal reviewer". Publication: Franklin Associates (2020). Cradle-to-Gate Life Cycle Analysis of Olefins | D60: Metadata Data Quality Entry indicates: ">80% of determined flows have been evaluated and given a value" | E60: "UNCERTAINTY ESTIMATION No uncertainty analysis was carried out due to the lack of uncertainty data or probability distributions for key parameters, which are often only available as single point estimates from NETL" | F60: Exchange amounts and contributions are completely available and transparent. Appendix available. | G60: Process is free and fully accessible to the public | H60: Appears annually but no clearly communicated plans for updates | I60: Acquired from Federal LCA Commons
C61: PROCESS DATA QUALITY SCORES ~ Enter a 1-5 score based on the process data quality evaluation responses~
C62: 4 | D62: 1 | E62: 5 | F62: 1 | G62: 1 | H62: 5 | I62: 1
C64: Use this link to characterization factors to determine LCIA compatibility: https://catalog.data.gov/dataset/characterization-factors-for-construction-material-epd-indicators-iso21930-lcia-us-v0-1
C65: LCIA Method Compatibility
C66: Impact Category | D66: Identified compatibility with impact assessment category (score as 1) | E66: Known flows missing (score as 3) | F66: Not Compatible (or unknown) (score as 5)
C67: Greenhouse Gases | D67: 1
C68: Ozone Depletion Potential | D68: 1
C69: Eutrophication Potential | D69: 1
C70: Acidification Potential | D70: 1
C71: Photochemical Oxidant Creation Potential | D71: 1
C74: LCIA Compatibility Average
C75: =AVERAGE(D67:F71) -> 1
B78: 4) Enter results of the flow level data quality evaluation
C80: FLOW DATA QUALITY EVALUATION
C81: Flow | D81: Flow Type | E81: Direction | F81: Exchange Impacts (flow amount* characterization factor) | G81: Year | H81: Geography | I81: Sources
C82: Crude oil, production mixture, at extraction - US | D82: Technosphere | E82: Input | F82: 0.0796 | G82: 2016 | H82: National (US) | I82: US EIA, 2016; US EIA, 2017
C83: Transport, ocean freighter, diesel powered - US | D83: Technosphere | E83: Input | F83: 0.0122 | G83: 2017 | H83: National (US) | I83: Unverified calculation
C84: Ethanol, 85%, at blending terminal - RNA | D84: Technosphere | E84: Input | F84: 0.0115 | G84: 2017 | H84: National (US) | I84: US EIA, 2017.
C85: Natural gas, combusted in industrial boiler - RNA | D85: Technosphere | E85: Input | F85: 0.0113 | G85: 2017 | H85: National (US) | I85: US EIA, 2017.
C86: Hydrogen, at plant | D86: Technosphere | E86: Input | F86: 0.0095 | G86: 2017 | H86: National (US) | I86: US EIA, 2017.
C87: Electricity, at Grid, US, 2010 - RNA | D87: Technosphere | E87: Input | F87: 0.0065 | G87: 2016 | H87: National (US) | I87: US eGRID 2016
C88: Liquefied petroleum gas, at refinery - RNA | D88: Technosphere | E88: Input | F88: 0.0034 | G88: 2017 | H88: National (US) | I88: US EIA, 2017.
C89: Transport, pipeline, unspecified petroleum products - RNA | D89: Technosphere | E89: Input | F89: 0.0010 | G89: 2017 | H89: National (US) | I89: US EIA 2017, Young et al. 2019
C90: Transport, train, diesel powered - RNA | D90: Technosphere | E90: Input | F90: 0.0008 | G90: 2017 | H90: National (US) | I90: US EIA 2017, Young et al. 2019
C91: Natural gas, production mixture, at processing | D91: Technosphere | E91: Input | F91: 0.0004 | G91: 2017 | H91: National (US) | I91: US EIA, 2017.
C92: Transport, barge, diesel powered - RNA | D92: Technosphere | E92: Input | F92: 0.0001 | G92: 2017 | H92: National (US) | I92: US EIA 2017, Young et al. 2019
C93: Bituminous coal, combusted in industrial boiler - RNA | D93: Technosphere | E93: Input | F93: 0.0001 | G93: 2017 | H93: National (US) | I93: US EIA, 2017.
C94: Sulfuric acid, at plant - RNA | D94: Technosphere | E94: Input | F94: 0.0001 | G94: 2017 | H94: National (US) | I94: No detailed source
C95: Water | D95: Elementary | E95: Output | F95: 0 | G95: 2014 | H95: National (US) | I95: EPA 2016; EIA, 2016
C96: 1,1,1-Trichloroethane | D96: Elementary | E96: Output | F96: 0 | G96: 2014 | H96: National (US) | I96: EPA 2016; EIA, 2016
C97: 1,2-Dichloroethane | D97: Elementary | E97: Output | F97: 0 | G97: 2014 | H97: National (US) | I97: EPA 2016; EIA, 2016
C98: Carbon dioxide | D98: Elementary | E98: Output | F98: 0.049 | G98: 2014 | H98: National (US) | I98: EPA 2016; EIA, 2016
C99: Carbon tetrachloride | D99: Elementary | E99: Output | F99: 0 | G99: 2014 | H99: National (US) | I99: EPA 2016; EIA, 2016
C100: CFC-13 | D100: Elementary | E100: Output | F100: 0 | G100: 2014 | H100: National (US) | I100: EPA 2016; EIA, 2016
C101: Chlorofluorocarbons | D101: Elementary | E101: Output | F101: 0 | G101: 2014 | H101: National (US) | I101: EPA 2016; EIA, 2016
C102: Chloroform | D102: Elementary | E102: Output | F102: 0 | G102: 2014 | H102: National (US) | I102: EPA 2016; EIA, 2016
C103: Chloromethane | D103: Elementary | E103: Output | F103: 0 | G103: 2014 | H103: National (US) | I103: EPA 2016; EIA, 2016
C104: Dibromomethane | D104: Elementary | E104: Output | F104: 0 | G104: 2014 | H104: National (US) | I104: EPA 2016; EIA, 2016
C105: HCFC-22 | D105: Elementary | E105: Output | F105: 0 | G105: 2014 | H105: National (US) | I105: EPA 2016; EIA, 2016
C106: Methane | D106: Elementary | E106: Output | F106: 0.0021 | G106: 2014 | H106: National (US) | I106: EPA 2016; EIA, 2016
C109: Aggregated Score | D109: Aggregated Score | E109: Aggregated Score | F109: Aggregated Score | G109: Aggregated Score
C110: =SUMPRODUCT($F82:$F106,C113:C137)/SUM($F82:$F106) -> 3.27 | D110: =SUMPRODUCT($F82:$F106,D113:D137)/SUM($F82:$F106) -> 1.00 | E110: =SUMPRODUCT($F82:$F106,E113:E137)/SUM($F82:$F106) -> 1.00 | F110: =SUMPRODUCT($F82:$F106,F113:F137)/SUM($F82:$F106) -> 1.00 | G110: =SUMPRODUCT($F82:$F106,G113:G137)/SUM($F82:$F106) -> 2.07
C111: FLOW DATA QUALITY SCORES
C112: Temporal | D112: Geographical | E112: Technological | F112: Data Collection | G112: Reliability
C113: =IF(ABS($D$22-G82)<3,1,IF(ABS($D$22-G82)<6,2,IF(ABS($D$22-G82)<10,3,IF(ABS($D$22-G82)<15,4,5)))) -> 3 | D113: 1 | E113: 1 | F113: 1 | G113: 2
C114: 3 | D114: 1 | E114: 1 | F114: 1 | G114: 3
C115: 3 | D115: 1 | E115: 1 | F115: 1 | G115: 2
C116: 3 | D116: 1 | E116: 1 | F116: 1 | G116: 2
C117: 3 | D117: 1 | E117: 1 | F117: 1 | G117: 2
C118: 3 | D118: 1 | E118: 1 | F118: 1 | G118: 2
C119: 3 | D119: 1 | E119: 1 | F119: 1 | G119: 2
C120: 3 | D120: 1 | E120: 1 | F120: 1 | G120: 2
C121: 3 | D121: 1 | E121: 1 | F121: 1 | G121: 2
C122: 3 | D122: 1 | E122: 1 | F122: 1 | G122: 2
C123: 3 | D123: 1 | E123: 1 | F123: 1 | G123: 2
C124: 3 | D124: 1 | E124: 1 | F124: 1 | G124: 2
C125: 3 | D125: 1 | E125: 5 | F125: 5 | G125: 5
C126: 4 | D126: 1 | E126: 1 | F126: 1 | G126: 2
C127: 4 | D127: 1 | E127: 1 | F127: 1 | G127: 2
C128: 4 | D128: 1 | E128: 1 | F128: 1 | G128: 2
C129: 4 | D129: 1 | E129: 1 | F129: 1 | G129: 2
C130: 4 | D130: 1 | E130: 1 | F130: 1 | G130: 2
C131: 4 | D131: 1 | E131: 1 | F131: 1 | G131: 2
C132: 4 | D132: 1 | E132: 1 | F132: 1 | G132: 2
C133: 4 | D133: 1 | E133: 1 | F133: 1 | G133: 2
C134: 4 | D134: 1 | E134: 1 | F134: 1 | G134: 2
C135: 4 | D135: 1 | E135: 1 | F135: 1 | G135: 2
C136: 4 | D136: 1 | E136: 1 | F136: 1 | G136: 2
C137: 4 | D137: 1 | E137: 1 | F137: 1 | G137: 2
B139: 5) Enter results of the process level data quality evaluation
C141: Process Name | D141: Crude oil, production mixture, at extraction
C142: Process Link | D142: https://www.lcacommons.gov/lca-collaboration/National_Renewable_Energy_Laboratory/USLCI_Database_Public/dataset/PROCESS/e53e0de4-6c90-3519-850b-eb670f2c641b
C144: Process Data Quality Evaluation | F144: Data Attributes
C145: Reviewed | D145: Flow Completeness | E145: Range Data Completeness | F145: Reproducibility | G145: Free-to-Use and Publicly Accessible | H145: Maintained | I145: Interoperable
C146: PROCESS DATA QUALITY INFORMATION ~ Enter data from the process that will be used to generate a 1-5 score ~
C147: Reviewed by internal reviewer. Publication: Franklin Associates (2020). Cradle-to-Gate Life Cycle Analysis of Olefins. | D147: Flows are complete and have been evaluated and given a value | E147: UNCERTAINTY ESTIMATION: No uncertainty analysis was carried out due to the lack of uncertainty data or probability distributions for key parameters, which are often only available as single point estimates from NETL | F147: Exchange amounts and contributions are completely available and transparent | G147: Process is free and fully accessible to the public | H147: Appears annually but no clearly communicated plans for updates | I147: Acquired from Federal LCA Commons
C148: PROCESS DATA QUALITY SCORES ~ Enter a 1-5 score based on the process data quality evaluation responses~
C149: 4 | D149: 1 | E149: 5 | F149: 1 | G149: 1 | H149: 5 | I149: 1
C151: LCIA Method Compatibility
C152: Impact Category | D152: Identified compatibility with impact assessment category (score as 1) | E152: Known flows missing (score as 3) | F152: Not Compatible (or unknown) (score as 5)
C153: Greenhouse Gases | D153: 1
C154: Ozone Depletion Potential | D154: 1
C155: Eutrophication Potential | D155: 1
C156: Acidification Potential | D156: 1
C157: Photochemical Oxidant Creation Potential | D157: 1
C159: LCIA Compatibility Average
C160: =AVERAGE(D153:G157) -> 1
B162: 6) Enter results of the flow level data quality evaluation
C164: FLOW DATA QUALITY EVALUATION
C165: Flow | D165: Flow Type | E165: Direction | F165: Exchange Impacts (flow amount* characterization factor) | G165: Year | H165: Geography | I165: Sources
C166: Crude oil, at extraction | D166: Technosphere | E166: Input | F166: 0.18 | G166: 2014 | H166: National (US) | I166: US EIA, 2017; US EPA, 2017
C167: Crude oil, at extraction | D167: Technosphere | E167: Input | F167: 0.16 | G167: 2014 | H167: National (US) | I167: US EIA, 2017; US EPA, 2017
C168: Crude oil, at extraction | D168: Technosphere | E168: Input | F168: 0.03 | G168: 2014 | H168: National (US) | I168: US EIA, 2017; US EPA, 2017
C169: Crude oil, at extraction | D169: Technosphere | E169: Input | F169: 0.02 | G169: 2014 | H169: National (US) | I169: US EIA, 2017; US EPA, 2017
C171: Aggregated Score | D171: Aggregated Score | E171: Aggregated Score | F171: Aggregated Score | G171: Aggregated Score
C172: =SUMPRODUCT($F166:$F169,C175:C178)/SUM($F166:$F169) -> 4 | D172: =SUMPRODUCT($F166:$F169,D175:D178)/SUM($F166:$F169) -> 1 | E172: =SUMPRODUCT($F166:$F169,E175:E178)/SUM($F166:$F169) -> 1 | F172: =SUMPRODUCT($F166:$F169,F175:F178)/SUM($F166:$F169) -> 1 | G172: =SUMPRODUCT($F166:$F169,G175:G178)/SUM($F166:$F169) -> 2
C173: FLOW DATA QUALITY SCORES
C174: Temporal | D174: Geographical | E174: Technological | F174: Data Collection | G174: Reliability
C175: =IF(ABS($D$22-G166)<3,1,IF(ABS($D$22-G166)<6,2,IF(ABS($D$22-G166)<10,3,IF(ABS($D$22-G166)<15,4,5)))) -> 4 | D175: 1 | E175: 1 | F175: 1 | G175: 2
C176: =IF(ABS($D$22-G167)<3,1,IF(ABS($D$22-G167)<6,2,IF(ABS($D$22-G167)<10,3,IF(ABS($D$22-G167)<15,4,5)))) -> 4 | D176: 1 | E176: 1 | F176: 1 | G176: 2
C177: =IF(ABS($D$22-G168)<3,1,IF(ABS($D$22-G168)<6,2,IF(ABS($D$22-G168)<10,3,IF(ABS($D$22-G168)<15,4,5)))) -> 4 | D177: 1 | E177: 1 | F177: 1 | G177: 2
C178: =IF(ABS($D$22-G169)<3,1,IF(ABS($D$22-G169)<6,2,IF(ABS($D$22-G169)<10,3,IF(ABS($D$22-G169)<15,4,5)))) -> 4 | D178: 1 | E178: 1 | F178: 1 | G178: 2
B180: 7) Enter results of the process level data quality evaluation
C182: Process Name | D182: Crude oil, on-shore import, at extraction - US
C183: Process Link | D183: https://www.lcacommons.gov/lca-collaboration/National_Renewable_Energy_Laboratory/USLCI_Database_Public/dataset/PROCESS/fcbe548c-bcd5-40b2-979c-53df809835f9
C185: Process Data Quality Evaluation | F185: Data Attributes
C186: Reviewed | D186: Flow Completeness | E186: Range Data Completeness | F186: Reproducibility | G186: Free-to-Use and Publicly Accessible | H186: Maintained | I186: Interoperable
C187: PROCESS DATA QUALITY INFORMATION ~ Enter data from the process that will be used to generate a 1-5 score ~
C188: Metadata Data Quality Entry indicates: "Documented review by an internal reviewer". Publication: Franklin Associates (2020). Cradle-to-Gate Life Cycle Analysis of Olefins | D188: Metadata Data Quality Entry indicates: >80% of determined flows have been evaluated and given a value | E188: UNCERTAINTY ESTIMATION No uncertainty analysis was carried out due to the lack of uncertainty data or probability distributions for key parameters, which are often only available as single point estimates from NETL. | F188: Exchange amounts and contributions are completely available and transparent | G188: Process is free and fully accessible to the public | H188: Appears annually but no clearly communicated plans for updates | I188: Acquired from Federal LCA Commons
C189: PROCESS DATA QUALITY SCORES ~ Enter a 1-5 score based on the process data quality evaluation responses~
C190: 4 | D190: 1 | E190: 5 | F190: 1 | G190: 1 | H190: 5 | I190: 1
C192: LCIA Method Compatibility
C193: Impact Category | D193: Identified compatibility with impact assessment category (score as 1) | E193: Known flows missing (score as 3) | F193: Not Compatible (or unknown) (score as 5)
C194: Greenhouse Gases | D194: 1
C195: Ozone Depletion Potential | D195: 1
C196: Eutrophication Potential | D196: 1
C197: Acidification Potential | D197: 1
C198: Photochemical Oxidant Creation Potential | D198: 1
C200: LCIA Compatibility Average
C201: =AVERAGE(D198:G202) -> 1
B203: 8) Enter results of the flow level data quality evaluation
C205: FLOW DATA QUALITY EVALUATION
C206: Flow | D206: Flow Type | E206: Direction | F206: Exchange Impacts (flow amount* characterization factor) | G206: Year | H206: Geography | I206: Sources
C207: Electricity, at grid - RNA | D207: Technosphere | E207: Input | F207: 0.024 | G207: 2013 | H207: National (US) | I207: US eGRID, GREET 2017
C208: Natural gas, combusted in industrial boiler - RNA | D208: Technosphere | E208: Input | F208: 0.000 | G208: 2013 | H208: National (US) | I208: GREET 2017
C209: Diesel, combusted in industrial equipment - RNA | D209: Technosphere | E209: Input | F209: 0.000 | G209: 2013 | H209: National (US) | I209: GREET 2017
C210: Gasoline, combusted in equipment - RNA | D210: Technosphere | E210: Input | F210: 0.000 | G210: 2013 | H210: National (US) | I210: GREET 2017
C211: Residual fuel oil, combusted in industrial boiler - RNA | D211: Technosphere | E211: Input | F211: 0.000 | G211: 2013 | H211: National (US) | I211: GREET 2017
C212: Diesel, combusted in industrial boiler - RNA | D212: Technosphere | E212: Input | F212: 0.000 | G212: 2013 | H212: National (US) | I212: GREET 2017
C213: Nitrogen oxides | D213: Elementary | E213: Output | F213: 0 | G213: 2013 | H213: National (US) | I213: Unverified calculation
C214: Sulfur dioxide | D214: Elementary | E214: Output | F214: 0 | G214: 2013 | H214: National (US) | I214: Unverified calculation
C215: Nitrogen | D215: Elementary | E215: Output | F215: 0 | G215: 2013 | H215: National (US) | I215: Unverified calculation
C216: Carbon dioxide | D216: Elementary | E216: Output | F216: 0.44 | G216: 2013 | H216: National (US) | I216: Cooney et al., 2017,
C217: 1,1,1-Trichloroethane | D217: Elementary | E217: Output | F217: 0 | G217: 2013 | H217: National (US) | I217: Unverified calculation
C218: Chloromethane | D218: Elementary | E218: Output | F218: 0 | G218: 2013 | H218: National (US) | I218: Unverified calculation
C219: Volatile organic compounds | D219: Elementary | E219: Output | F219: 0 | G219: 2013 | H219: National (US) | I219: Unverified calculation
C221: Aggregated Score | D221: Aggregated Score | E221: Aggregated Score | F221: Aggregated Score | G221: Aggregated Score
C222: =SUMPRODUCT($F207:$F219,C225:C237)/SUM($F207:$F219) -> 4 | D222: =SUMPRODUCT($F207:$F219,D225:D237)/SUM($F207:$F219) -> 1 | E222: =SUMPRODUCT($F207:$F219,E225:E237)/SUM($F207:$F219) -> 1.154966992 | F222: =SUMPRODUCT($F207:$F219,F225:F237)/SUM($F207:$F219) -> 1.206873085 | G222: =SUMPRODUCT($F207:$F219,G225:G237)/SUM($F207:$F219) -> 2
C223: FLOW DATA QUALITY SCORES
C224: Temporal | D224: Geographical | E224: Technological | F224: Data Collection | G224: Reliability
C225: =IF(ABS($D$22-G207)<3,1,IF(ABS($D$22-G207)<6,2,IF(ABS($D$22-G207)<10,3,IF(ABS($D$22-G207)<15,4,5)))) -> 4 | D225: 1 | E225: 4 | F225: 5 | G225: 2
C226: 4 | D226: 1 | E226: 2 | F226: 5 | G226: 2
C227: 4 | D227: 1 | E227: 4 | F227: 5 | G227: 2
C228: 4 | D228: 1 | E228: 4 | F228: 5 | G228: 2
C229: 4 | D229: 1 | E229: 4 | F229: 5 | G229: 2
C230: 4 | D230: 1 | E230: 4 | F230: 5 | G230: 2
C231: 4 | D231: 1 | E231: 4 | F231: 5 | G231: 3
C232: 4 | D232: 1 | E232: 4 | F232: 5 | G232: 3
C233: 4 | D233: 1 | E233: 4 | F233: 5 | G233: 3
... 55 more rows

Sheet DQA Matrix Example
B2: Data Quality Score Aggregation Example (based on 'Scoring Example (USLCI))
B4: Weighting By GHG Contribution
B5: Total Represented (%) | C5: > | D5: Scale to 100% | E5: > | F5: Decimal format | G5: > | H5: Final cradle-to-gate aggregated DQA score
B7: =B33+B108+B58+B83 -> 69.17 | D7: =D33+D108+D58+D83 -> 100.00 | F7: =F33+F108+F58+F83 -> 1.00 | H7: =F33*F30+F108*F105+F58*F55+F83*F80 -> 27.86
B10: Complete aggregation table for each process, weight by GHG contribution at the end (see calculation columns H:N)
B12: Indicator | D12: Priority Importance Weighting Factor (lower number = higher priority weighting) | E12: < Unit Process: Petroleum refining, at refinery - US>
E13: Aggregated DQI Score (between 1 and 5) | F13: Aggregated DQI Score * Priority Importance Weighting Factor
B14: Aggregated Flow-level DQI (to be assessed for flows influencing GHG)
B15: Temporal Representativeness | D15: 1 | E15: ='Scoring Example (USLCI)'!C110 -> 3.27 | F15: =D15*E15 -> 3.27
B16: Geographical Representativeness | D16: 1 | E16: ='Scoring Example (USLCI)'!D110 -> 1.00 | F16: 1.00
B17: Technological Representativeness | D17: 1 | E17: ='Scoring Example (USLCI)'!E110 -> 1.00 | F17: 1.00
B18: Data Collection Methods | D18: 1 | E18: ='Scoring Example (USLCI)'!F110 -> 1.00 | F18: 1.00
B19: Reliability | D19: 1 | E19: ='Scoring Example (USLCI)'!G110 -> 2.07 | F19: 2.07
B20: Process-level DQI
B21: Reviewed | D21: 1 | E21: ='Scoring Example (USLCI)'!C62 -> 4 | F21: 4
B22: Flow Completeness | D22: 1 | E22: ='Scoring Example (USLCI)'!D62 -> 1 | F22: 1
B23: Range Data Completeness | D23: 1 | E23: ='Scoring Example (USLCI)'!E62 -> 5 | F23: 5
B24: Data Attributes
B25: Reproducibility | D25: 1 | E25: ='Scoring Example (USLCI)'!F62 -> 1 | F25: 1
B26: Free-to-Use and Publicly Accessible | D26: 1 | E26: ='Scoring Example (USLCI)'!G62 -> 1 | F26: 1
B27: Interoperable | D27: 1 | E27: ='Scoring Example (USLCI)'!I62 -> 1 | F27: 1
B28: Maintained | D28: 1 | E28: ='Scoring Example (USLCI)'!H62 -> 5 | F28: 5
B29: LCIA Method Compatibility | D29: 1 | E29: ='Scoring Example (USLCI)'!C75 -> 1 | F29: 1
B30: Total | F30: =SUM(F15:F29) -> 27.34
B32: % Contribution of Cradle-to-Gate Impacts
B33: =('Scoring Example (USLCI)'!C34-'Scoring Example (USLCI)'!C35-SUM('Scoring Example (USLCI)'!C40:C50)) -> 26.27 | D33: =B33/($B$7/100) -> 37.98 | F33: =D33/100 -> 0.38
B37: Indicator | D37: Priority Importance Weighting Factor (lower number = higher priority weighting) | E37: <Crude oil, on-shore import, at extraction - US>
E38: Aggregated DQI Score (between 1 and 5) | F38: Aggregated DQI Score * Priority Importance Weighting Factor
B39: Aggregated Flow-level DQI (to be assessed for flows influencing GHG)
B40: Temporal Representativeness | D40: 1 | E40: ='Scoring Example (USLCI)'!C222 -> 4 | F40: =D40*E40 -> 4
B41: Geographical Representativeness | D41: 1 | E41: ='Scoring Example (USLCI)'!D222 -> 1 | F41: 1
B42: Technological Representativeness | D42: 1 | E42: ='Scoring Example (USLCI)'!E222 -> 1.15 | F42: 1.15
B43: Data Collection Methods | D43: 1 | E43: ='Scoring Example (USLCI)'!F222 -> 1.21 | F43: =D43*E43 -> 1.21
B44: Reliability | D44: 1 | E44: ='Scoring Example (USLCI)'!G222 -> 2 | F44: 2
B45: Process-level DQI
B46: Reviewed | D46: 1 | E46: ='Scoring Example (USLCI)'!C190 -> 4 | F46: 4
B47: Flow Completeness | D47: 1 | E47: ='Scoring Example (USLCI)'!D190 -> 1 | F47: 1
B48: Range Data Completeness | D48: 1 | E48: ='Scoring Example (USLCI)'!E190 -> 5 | F48: 5
B49: Data Attributes
B50: Reproducibility | D50: 1 | E50: ='Scoring Example (USLCI)'!F190 -> 1 | F50: 1
B51: Free-to-Use and Publicly Accessible | D51: 1 | E51: ='Scoring Example (USLCI)'!G190 -> 1 | F51: 1
B52: Interoperable | D52: 1 | E52: ='Scoring Example (USLCI)'!I190 -> 1 | F52: 1
B53: Maintained | D53: 1 | E53: ='Scoring Example (USLCI)'!H190 -> 5 | F53: 5
B54: LCIA Method Compatibility | D54: 1 | E54: ='Scoring Example (USLCI)'!C201 -> 1 | F54: 1
B55: Total | F55: =SUM(F40:F54) -> 28.36
B57: % Contribution (individual process), above
B58: ='Scoring Example (USLCI)'!C36 -> 20.10 | D58: =B58/($B$7/100) -> 29.06 | F58: =D58/100 -> 0.29
B62: Indicator | D62: Priority Importance Weighting Factor (lower number = higher priority weighting) | E62: < Crude oil, on-shore domestic, at extraction - US>
E63: Aggregated DQI Score (between 1 and 5) | F63: Aggregated DQI Score * Priority Importance Weighting Factor
B64: Aggregated Flow-level DQI (to be assessed for flows influencing GHG)
B65: Temporal Representativeness | D65: 1 | E65: ='Scoring Example (USLCI)'!C281 -> 4 | F65: =D65*E65 -> 4
B66: Geographical Representativeness | D66: 1 | E66: ='Scoring Example (USLCI)'!D281 -> 1 | F66: 1
B67: Technological Representativeness | D67: 1 | E67: ='Scoring Example (USLCI)'!E281 -> 1.00 | F67: 1.00
B68: Data Collection Methods | D68: 1 | E68: ='Scoring Example (USLCI)'!F281 -> 1.00 | F68: 1.00
B69: Reliability | D69: 1 | E69: ='Scoring Example (USLCI)'!G281 -> 2 | F69: 2
B70: Process-level DQI
B71: Reviewed | D71: 1 | E71: ='Scoring Example (USLCI)'!C249 -> 4 | F71: 4
B72: Flow Completeness | D72: 1 | E72: ='Scoring Example (USLCI)'!D249 -> 1 | F72: 1
B73: Range Data Completeness | D73: 1 | E73: ='Scoring Example (USLCI)'!E249 -> 5 | F73: =D73*E73 -> 5
B74: Data Attributes
B75: Reproducibility | D75: 1 | E75: ='Scoring Example (USLCI)'!F249 -> 1 | F75: 1
B76: Free-to-Use and Publicly Accessible | D76: 1 | E76: ='Scoring Example (USLCI)'!G249 -> 1 | F76: 1
B77: Interoperable | D77: 1 | E77: ='Scoring Example (USLCI)'!I249 -> 1 | F77: 1
B78: Maintained | D78: 1 | E78: ='Scoring Example (USLCI)'!H249 -> 5 | F78: 5
B79: LCIA Method Compatibility | D79: 1 | E79: ='Scoring Example (USLCI)'!C260 -> 1 | F79: =D79*E79 -> 1
B80: Total | F80: =SUM(F65:F79) -> 28.00
B82: % Contribution (individual process), above
B83: ='Scoring Example (USLCI)'!C37 -> 17.50 | D83: =B83/($B$7/100) -> 25.30 | F83: =D83/100 -> 0.25
B87: Indicator | D87: Priority Importance Weighting Factor (lower number = higher priority weighting) | E87: < Crude oil, production mixture, at extraction>
E88: Aggregated DQI Score (between 1 and 5) | F88: Aggregated DQI Score * Priority Importance Weighting Factor
B89: Aggregated Flow-level DQI (to be assessed for flows influencing GHG)
B90: Temporal Representativeness | D90: 1 | E90: ='Scoring Example (USLCI)'!C172 -> 4 | F90: =D90*E90 -> 4
B91: Geographical Representativeness | D91: 1 | E91: ='Scoring Example (USLCI)'!D172 -> 1 | F91: 1
B92: Technological Representativeness | D92: 1 | E92: ='Scoring Example (USLCI)'!E172 -> 1 | F92: 1
B93: Data Collection Methods | D93: 1 | E93: ='Scoring Example (USLCI)'!F172 -> 1 | F93: 1
B94: Reliability | D94: 1 | E94: ='Scoring Example (USLCI)'!G172 -> 2 | F94: 2
B95: Process-level DQI
B96: Reviewed | D96: 1 | E96: ='Scoring Example (USLCI)'!C149 -> 4 | F96: 4
B97: Flow Completeness | D97: 1 | E97: ='Scoring Example (USLCI)'!D149 -> 1 | F97: 1
B98: Range Data Completeness | D98: 1 | E98: ='Scoring Example (USLCI)'!E149 -> 5 | F98: 5
B99: Data Attributes
B100: Reproducibility | D100: 1 | E100: ='Scoring Example (USLCI)'!F149 -> 1 | F100: 1
B101: Free-to-Use and Publicly Accessible | D101: 1 | E101: ='Scoring Example (USLCI)'!G149 -> 1 | F101: 1
B102: Interoperable | D102: 1 | E102: ='Scoring Example (USLCI)'!I149 -> 1 | F102: 1
B103: Maintained | D103: 1 | E103: ='Scoring Example (USLCI)'!H149 -> 5 | F103: 5
B104: LCIA Method Compatibility | D104: 1 | E104: ='Scoring Example (USLCI)'!C160 -> 1 | F104: 1
B105: Total | F105: =SUM(F90:F104) -> 28
B107: % Contribution (individual process), above
B108: ='Scoring Example (USLCI)'!C35-B58-B83 -> 5.30 | D108: =B108/($B$7/100) -> 7.66 | F108: =D108/100 -> 0.08
